Workbook

Sheet Sheet1
A1: 中口径客运量 | O1: =O5-([1]网约车!O5-[1]网约车!O7)-([1]出租!O5-[1]出租!O7)-([1]公交!O5-[1]公交!O7)-[1]班线包车!O4 -> 0
A2: 注：中口径客运量由公路班线、城际城乡公交、城际城乡出租、城际城乡网约车客运量四部分构成 | O2: =Sheet2!O5-[1]网约车!O6+[1]网约车!O8-[1]出租!O6+[1]出租!O8-[1]公交!O6+[1]公交!O8-[1]班线包车!O5 -> 0
A3: 地区 名称 | B3: 指标 | C3: 2026年1月 | D3: 1月同比 | E3: 2026年2月 | F3: 2月同比 | G3: 2026年3月 | H3: 3月同比 | I3: 2026年4月 | J3: 4月同比 | K3: 2026年5月 | L3: 5月同比 | M3: 2026年6月 | N3: 6月同比 | O3: 累计 | P3: 累计同比
A5: 全省 | B5: 总客运量（万人次） | C5: =C6+C7+C8+C9 -> 3733.79 | D5: =C5/#REF!-1 ->  | E5: =E6+E7+E8+E9 -> 3777.83 | F5: =E5/#REF!-1 ->  | G5: =G6+G7+G8+G9 -> 3874.44 | H5: =G5/#REF!-1 ->  | I5: =I6+I7+I8+I9 -> 3959.25 | J5: =I5/#REF!-1 ->  | K5: =K6+K7+K8+K9 -> 4115.87 | L5: =K5/#REF!-1 ->  | M5: =M6+M7+M8+M9 -> 4034.99 | N5: =M5/#REF!-1 ->  | O5: =E5+C5+G5+I5+K5+M5 -> 23496.17 | P5: =O5/SUM(#REF!,#REF!,#REF!,#REF!,#REF!,#REF!)-1 -> 
B6: 公路班线客运量（万人次） | C6: =C11+C16+C21+C26+C31+C36+C41+C46+C51+C56+C61+C66+C71+C76+C81+C86+C91 -> 1473.38 | D6: =C6/#REF!-1 ->  | E6: =E11+E16+E21+E26+E31+E36+E41+E46+E51+E56+E61+E66+E71+E76+E81+E86+E91 -> 1543.17 | F6: =E6/#REF!-1 ->  | G6: =G11+G16+G21+G26+G31+G36+G41+G46+G51+G56+G61+G66+G71+G76+G81+G86+G91 -> 1575.67 | H6: =G6/#REF!-1 ->  | I6: =I11+I16+I21+I26+I31+I36+I41+I46+I51+I56+I61+I66+I71+I76+I81+I86+I91 -> 1662.97 | J6: =I6/#REF!-1 ->  | K6: =K11+K16+K21+K26+K31+K36+K41+K46+K51+K56+K61+K66+K71+K76+K81+K86+K91 -> 1699.64 | L6: =K6/#REF!-1 ->  | M6: =M11+M16+M21+M26+M31+M36+M41+M46+M51+M56+M61+M66+M71+M76+M81+M86+M91 -> 1618.51 | N6: =M6/#REF!-1 ->  | O6: 9573.34 | P6: =O6/SUM(#REF!,#REF!,#REF!,#REF!,#REF!,#REF!)-1 -> 
B7: 城际城乡公交客运量（万人次） | C7: =C12+C17+C22+C27+C32+C37+C42+C47+C52+C57+C62+C67+C72+C77+C82+C87+C92 -> 1391.19 | D7: =C7/#REF!-1 ->  | E7: =E12+E17+E22+E27+E32+E37+E42+E47+E52+E57+E62+E67+E72+E77+E82+E87+E92 -> 1389.65 | F7: =E7/#REF!-1 ->  | G7: =G12+G17+G22+G27+G32+G37+G42+G47+G52+G57+G62+G67+G72+G77+G82+G87+G92 -> 1437.57 | H7: =G7/#REF!-1 ->  | I7: =I12+I17+I22+I27+I32+I37+I42+I47+I52+I57+I62+I67+I72+I77+I82+I87+I92 -> 1462.08 | J7: =I7/#REF!-1 ->  | K7: =K12+K17+K22+K27+K32+K37+K42+K47+K52+K57+K62+K67+K72+K77+K82+K87+K92 -> 1529.42 | L7: =K7/#REF!-1 ->  | M7: =M12+M17+M22+M27+M32+M37+M42+M47+M52+M57+M62+M67+M72+M77+M82+M87+M92 -> 1517.52 | N7: =M7/#REF!-1 ->  | O7: 8727.43 | P7: =O7/SUM(#REF!,#REF!,#REF!,#REF!,#REF!,#REF!)-1 -> 
B8: 城际城乡巡游出租客运量（万人次） | C8: =C13+C18+C23+C28+C33+C38+C43+C48+C53+C58+C63+C68+C73+C78+C83+C88+C93 -> 535.83 | D8: =C8/#REF!-1 ->  | E8: =E13+E18+E23+E28+E33+E38+E43+E48+E53+E58+E63+E68+E73+E78+E83+E88+E93 -> 550.52 | F8: =E8/#REF!-1 ->  | G8: =G13+G18+G23+G28+G33+G38+G43+G48+G53+G58+G63+G68+G73+G78+G83+G88+G93 -> 513.97 | H8: =G8/#REF!-1 ->  | I8: =I13+I18+I23+I28+I33+I38+I43+I48+I53+I58+I63+I68+I73+I78+I83+I88+I93 -> 498.81 | J8: =I8/#REF!-1 ->  | K8: =K13+K18+K23+K28+K33+K38+K43+K48+K53+K58+K63+K68+K73+K78+K83+K88+K93 -> 517.54 | L8: =K8/#REF!-1 ->  | M8: =M13+M18+M23+M28+M33+M38+M43+M48+M53+M58+M63+M68+M73+M78+M83+M88+M93 -> 515.28 | N8: =M8/#REF!-1 ->  | O8: 3131.95 | P8: =O8/SUM(#REF!,#REF!,#REF!,#REF!,#REF!,#REF!)-1 -> 
B9: 城际城乡网约车客运量(万人次) | C9: =C14+C19+C24+C29+C34+C39+C44+C49+C54+C59+C64+C69+C74+C79+C84+C89+C94 -> 333.39 | D9: =C9/#REF!-1 ->  | E9: =E14+E19+E24+E29+E34+E39+E44+E49+E54+E59+E64+E69+E74+E79+E84+E89+E94 -> 294.49 | F9: =E9/#REF!-1 ->  | G9: =G14+G19+G24+G29+G34+G39+G44+G49+G54+G59+G64+G69+G74+G79+G84+G89+G94 -> 347.23 | H9: =G9/#REF!-1 ->  | I9: =I14+I19+I24+I29+I34+I39+I44+I49+I54+I59+I64+I69+I74+I79+I84+I89+I94 -> 335.39 | J9: =I9/#REF!-1 ->  | K9: =K14+K19+K24+K29+K34+K39+K44+K49+K54+K59+K64+K69+K74+K79+K84+K89+K94 -> 369.27 | L9: =K9/#REF!-1 ->  | M9: =M14+M19+M24+M29+M34+M39+M44+M49+M54+M59+M64+M69+M74+M79+M84+M89+M94 -> 383.68 | N9: =M9/#REF!-1 ->  | O9: 2063.45 | P9: =O9/SUM(#REF!,#REF!,#REF!,#REF!,#REF!,#REF!)-1 -> 
A10: 武汉市 | B10: 总客运量（万人次） | C10: =C11+C12+C13+C14 -> 349.53 | D10: =C10/#REF!-1 ->  | E10: =E11+E12+E13+E14 -> 256.86 | F10: =E10/#REF!-1 ->  | G10: =G11+G12+G13+G14 -> 356.89 | H10: =G10/#REF!-1 ->  | I10: =I11+I12+I13+I14 -> 362.13 | J10: =I10/#REF!-1 ->  | K10: =K11+K12+K13+K14 -> 353.18 | L10: =K10/#REF!-1 ->  | M10: =M11+M12+M13+M14 -> 364.95 | N10: =M10/#REF!-1 ->  | O10: 2043.52 | P10: =O10/SUM(#REF!,#REF!,#REF!,#REF!,#REF!,#REF!)-1 -> 
B11: 公路班线客运量（万人次） | C11: =[1]班线包车!C8 -> 323.8804 | D11: =C11/#REF!-1 ->  | E11: =[1]班线包车!E8 -> 236.0855 | F11: =E11/#REF!-1 ->  | G11: =[1]班线包车!G8 -> 326.996 | H11: =G11/#REF!-1 ->  | I11: =[1]班线包车!I8 -> 335.787 | J11: =I11/#REF!-1 ->  | K11: =[1]班线包车!K8 -> 327.5977 | L11: =K11/#REF!-1 ->  | M11: =[1]班线包车!M8 -> 341.1759 | N11: =M11/#REF!-1 ->  | O11: 1891.52 | P11: =O11/SUM(#REF!,#REF!,#REF!,#REF!,#REF!,#REF!)-1 -> 
B12: 城际城乡公交客运量（万人次） | C12: =[1]公交!C9-[1]公交!C11 -> 25.65 | D12: =C12/#REF!-1 ->  | E12: =[1]公交!E9-[1]公交!E11 -> 20.77 | F12: =E12/#REF!-1 ->  | G12: =[1]公交!G9-[1]公交!G11 -> 29.89 | H12: =G12/#REF!-1 ->  | I12: =[1]公交!I9-[1]公交!I11 -> 26.34 | J12: =I12/#REF!-1 ->  | K12: =[1]公交!K9-[1]公交!K11 -> 25.58 | L12: =K12/#REF!-1 ->  | M12: =[1]公交!M9-[1]公交!M11 -> 23.77 | N12: =M12/#REF!-1 ->  | O12: 152.00 | P12: =O12/SUM(#REF!,#REF!,#REF!,#REF!,#REF!,#REF!)-1 -> 
B13: 城际城乡巡游出租客运量（万人次） | C13: 0 | D13: =C13/#REF!-1 ->  | E13: 0 | F13: =E13/#REF!-1 ->  | G13: 0 | H13: =G13/#REF!-1 ->  | I13: 0 | J13: =I13/#REF!-1 ->  | K13: 0 | L13: =K13/#REF!-1 ->  | M13: 0 | N13: =M13/#REF!-1 ->  | O13: 0.00 | P13: =O13/SUM(#REF!,#REF!,#REF!,#REF!,#REF!,#REF!)-1 -> 
B14: 城际城乡网约车客运量(万人次) | C14: 0.000 | D14: =C14/#REF!-1 ->  | E14: 0.000 | F14: =E14/#REF!-1 ->  | G14: 0.000 | H14: =G14/#REF!-1 ->  | I14: 0.000 | J14: =I14/#REF!-1 ->  | K14: 0.000 | L14: =K14/#REF!-1 ->  | M14: 0.000 | N14: =M14/#REF!-1 ->  | O14: 0.00 | P14: =O14/SUM(#REF!,#REF!,#REF!,#REF!,#REF!,#REF!)-1 -> 
A15: 黄石市 | B15: 总客运量（万人次） | C15: =C16+C17+C18+C19 -> 221.14 | D15: =C15/#REF!-1 ->  | E15: =E16+E17+E18+E19 -> 222.04 | F15: =E15/#REF!-1 ->  | G15: =G16+G17+G18+G19 -> 230.30 | H15: =G15/#REF!-1 ->  | I15: =I16+I17+I18+I19 -> 227.89 | J15: =I15/#REF!-1 ->  | K15: =K16+K17+K18+K19 -> 258.30 | L15: =K15/#REF!-1 ->  | M15: =M16+M17+M18+M19 -> 253.03 | N15: =M15/#REF!-1 ->  | O15: 1412.70 | P15: =O15/SUM(#REF!,#REF!,#REF!,#REF!,#REF!,#REF!)-1 -> 
B16: 公路班线客运量（万人次） | C16: =[1]班线包车!C10 -> 75.4816 | D16: =C16/#REF!-1 ->  | E16: =[1]班线包车!E10 -> 84.6235 | F16: =E16/#REF!-1 ->  | G16: =[1]班线包车!G10 -> 79.3692 | H16: =G16/#REF!-1 ->  | I16: =[1]班线包车!I10 -> 78.3745 | J16: =I16/#REF!-1 ->  | K16: =[1]班线包车!K10 -> 75.5822 | L16: =K16/#REF!-1 ->  | M16: =[1]班线包车!M10 -> 74.7909 | N16: =M16/#REF!-1 ->  | O16: 468.22 | P16: =O16/SUM(#REF!,#REF!,#REF!,#REF!,#REF!,#REF!)-1 -> 
B17: 城际城乡公交客运量（万人次） | C17: =[1]公交!C13-[1]公交!C15 -> 106.05 | D17: =C17/#REF!-1 ->  | E17: =[1]公交!E13-[1]公交!E15 -> 100.73 | F17: =E17/#REF!-1 ->  | G17: =[1]公交!G13-[1]公交!G15 -> 111.8 | H17: =G17/#REF!-1 ->  | I17: =[1]公交!I13-[1]公交!I15 -> 110.4 | J17: =I17/#REF!-1 ->  | K17: =[1]公交!K13-[1]公交!K15 -> 141.4 | L17: =K17/#REF!-1 ->  | M17: =[1]公交!M13-[1]公交!M15 -> 135.9 | N17: =M17/#REF!-1 ->  | O17: 706.28 | P17: =O17/SUM(#REF!,#REF!,#REF!,#REF!,#REF!,#REF!)-1 -> 
B18: 城际城乡巡游出租客运量（万人次） | C18: =[1]出租!C13-[1]出租!C15 -> 26.01 | D18: =C18/#REF!-1 ->  | E18: =[1]出租!E13-[1]出租!E15 -> 24.86 | F18: =E18/#REF!-1 ->  | G18: =[1]出租!G13-[1]出租!G15 -> 25.2 | H18: =G18/#REF!-1 ->  | I18: =[1]出租!I13-[1]出租!I15 -> 26.13 | J18: =I18/#REF!-1 ->  | K18: =[1]出租!K13-[1]出租!K15 -> 25.71 | L18: =K18/#REF!-1 ->  | M18: =[1]出租!M13-[1]出租!M15 -> 24.51 | N18: =M18/#REF!-1 ->  | O18: 152.42 | P18: =O18/SUM(#REF!,#REF!,#REF!,#REF!,#REF!,#REF!)-1 -> 
B19: 城际城乡网约车客运量(万人次) | C19: =[1]网约车!C13-[1]网约车!C15 -> 13.600 | D19: =C19/#REF!-1 ->  | E19: =[1]网约车!E13-[1]网约车!E15 -> 11.823 | F19: =E19/#REF!-1 ->  | G19: =[1]网约车!G13-[1]网约车!G15 -> 13.928 | H19: =G19/#REF!-1 ->  | I19: =[1]网约车!I13-[1]网约车!I15 -> 12.982 | J19: =I19/#REF!-1 ->  | K19: =[1]网约车!K13-[1]网约车!K15 -> 15.609 | L19: =K19/#REF!-1 ->  | M19: =[1]网约车!M13-[1]网约车!M15 -> 17.834 | N19: =M19/#REF!-1 ->  | O19: 85.78 | P19: =O19/SUM(#REF!,#REF!,#REF!,#REF!,#REF!,#REF!)-1 -> 
A20: 十堰市 | B20: 总客运量（万人次） | C20: =C21+C22+C23+C24 -> 173.23 | D20: =C20/#REF!-1 ->  | E20: =E21+E22+E23+E24 -> 186.93 | F20: =E20/#REF!-1 ->  | G20: =G21+G22+G23+G24 -> 188.97 | H20: =G20/#REF!-1 ->  | I20: =I21+I22+I23+I24 -> 204.53 | J20: =I20/#REF!-1 ->  | K20: =K21+K22+K23+K24 -> 201.41 | L20: =K20/#REF!-1 ->  | M20: =M21+M22+M23+M24 -> 199.09 | N20: =M20/#REF!-1 ->  | O20: 1154.16 | P20: =O20/SUM(#REF!,#REF!,#REF!,#REF!,#REF!,#REF!)-1 -> 
B21: 公路班线客运量（万人次） | C21: =[1]班线包车!C14 -> 44.2561 | D21: =C21/#REF!-1 ->  | E21: =[1]班线包车!E14 -> 64.7578 | F21: =E21/#REF!-1 ->  | G21: =[1]班线包车!G14 -> 60.4028 | H21: =G21/#REF!-1 ->  | I21: =[1]班线包车!I14 -> 68.256 | J21: =I21/#REF!-1 ->  | K21: =[1]班线包车!K14 -> 66.0753 | L21: =K21/#REF!-1 ->  | M21: =[1]班线包车!M14 -> 57.5147 | N21: =M21/#REF!-1 ->  | O21: 361.26 | P21: =O21/SUM(#REF!,#REF!,#REF!,#REF!,#REF!,#REF!)-1 -> 
B22: 城际城乡公交客运量（万人次） | C22: =[1]公交!C17-[1]公交!C19 -> 115.25 | D22: =C22/#REF!-1 ->  | E22: =[1]公交!E17-[1]公交!E19 -> 111.24 | F22: =E22/#REF!-1 ->  | G22: =[1]公交!G17-[1]公交!G19 -> 112.62 | H22: =G22/#REF!-1 ->  | I22: =[1]公交!I17-[1]公交!I19 -> 122.17 | J22: =I22/#REF!-1 ->  | K22: =[1]公交!K17-[1]公交!K19 -> 119.16 | L22: =K22/#REF!-1 ->  | M22: =[1]公交!M17-[1]公交!M19 -> 124.86 | N22: =M22/#REF!-1 ->  | O22: 705.30 | P22: =O22/SUM(#REF!,#REF!,#REF!,#REF!,#REF!,#REF!)-1 -> 
B23: 城际城乡巡游出租客运量（万人次） | C23: =[1]出租!C17-[1]出租!C19 -> 3.06 | D23: =C23/#REF!-1 ->  | E23: =[1]出租!E17-[1]出租!E19 -> 1.82 | F23: =E23/#REF!-1 ->  | G23: =[1]出租!G17-[1]出租!G19 -> 2.01 | H23: =G23/#REF!-1 ->  | I23: =[1]出租!I17-[1]出租!I19 -> 1.91 | J23: =I23/#REF!-1 ->  | K23: =[1]出租!K17-[1]出租!K19 -> 2.27 | L23: =K23/#REF!-1 ->  | M23: =[1]出租!M17-[1]出租!M19 -> 1.95 | N23: =M23/#REF!-1 ->  | O23: 13.02 | P23: =O23/SUM(#REF!,#REF!,#REF!,#REF!,#REF!,#REF!)-1 -> 
B24: 城际城乡网约车客运量(万人次) | C24: =[1]网约车!C17-[1]网约车!C19 -> 10.668 | D24: =C24/#REF!-1 ->  | E24: =[1]网约车!E17-[1]网约车!E19 -> 9.117 | F24: =E24/#REF!-1 ->  | G24: =[1]网约车!G17-[1]网约车!G19 -> 13.933 | H24: =G24/#REF!-1 ->  | I24: =[1]网约车!I17-[1]网约车!I19 -> 12.189 | J24: =I24/#REF!-1 ->  | K24: =[1]网约车!K17-[1]网约车!K19 -> 13.906 | L24: =K24/#REF!-1 ->  | M24: =[1]网约车!M17-[1]网约车!M19 -> 14.766 | N24: =M24/#REF!-1 ->  | O24: 74.58 | P24: =O24/SUM(#REF!,#REF!,#REF!,#REF!,#REF!,#REF!)-1 -> 
A25: 宜昌市 | B25: 总客运量（万人次） | C25: =C26+C27+C28+C29 -> 266.58 | D25: =C25/#REF!-1 ->  | E25: =E26+E27+E28+E29 -> 302.95 | F25: =E25/#REF!-1 ->  | G25: =G26+G27+G28+G29 -> 318.38 | H25: =G25/#REF!-1 ->  | I25: =I26+I27+I28+I29 -> 358.34 | J25: =I25/#REF!-1 ->  | K25: =K26+K27+K28+K29 -> 409.31 | L25: =K25/#REF!-1 ->  | M25: =M26+M27+M28+M29 -> 385.38 | N25: =M25/#REF!-1 ->  | O25: 2040.95 | P25: =O25/SUM(#REF!,#REF!,#REF!,#REF!,#REF!,#REF!)-1 -> 
B26: 公路班线客运量（万人次） | C26: =[1]班线包车!C18 -> 178.5701 | D26: =C26/#REF!-1 ->  | E26: =[1]班线包车!E18 -> 215.5515 | F26: =E26/#REF!-1 ->  | G26: =[1]班线包车!G18 -> 211.3526 | H26: =G26/#REF!-1 ->  | I26: =[1]班线包车!I18 -> 243.5999 | J26: =I26/#REF!-1 ->  | K26: =[1]班线包车!K18 -> 277.3764 | L26: =K26/#REF!-1 ->  | M26: =[1]班线包车!M18 -> 250.6952 | N26: =M26/#REF!-1 ->  | O26: 1377.15 | P26: =O26/SUM(#REF!,#REF!,#REF!,#REF!,#REF!,#REF!)-1 -> 
B27: 城际城乡公交客运量（万人次） | C27: =[1]公交!C21-[1]公交!C23 -> 40.97 | D27: =C27/#REF!-1 ->  | E27: =[1]公交!E21-[1]公交!E23 -> 38.56 | F27: =E27/#REF!-1 ->  | G27: =[1]公交!G21-[1]公交!G23 -> 32.52 | H27: =G27/#REF!-1 ->  | I27: =[1]公交!I21-[1]公交!I23 -> 31.47 | J27: =I27/#REF!-1 ->  | K27: =[1]公交!K21-[1]公交!K23 -> 41.14 | L27: =K27/#REF!-1 ->  | M27: =[1]公交!M21-[1]公交!M23 -> 42.97 | N27: =M27/#REF!-1 ->  | O27: 227.63 | P27: =O27/SUM(#REF!,#REF!,#REF!,#REF!,#REF!,#REF!)-1 -> 
B28: 城际城乡巡游出租客运量（万人次） | C28: =[1]出租!C21-[1]出租!C23 -> 27.44 | D28: =C28/#REF!-1 ->  | E28: =[1]出租!E21-[1]出租!E23 -> 29.94 | F28: =E28/#REF!-1 ->  | G28: =[1]出租!G21-[1]出租!G23 -> 40.93 | H28: =G28/#REF!-1 ->  | I28: =[1]出租!I21-[1]出租!I23 -> 45.65 | J28: =I28/#REF!-1 ->  | K28: =[1]出租!K21-[1]出租!K23 -> 48.43 | L28: =K28/#REF!-1 ->  | M28: =[1]出租!M21-[1]出租!M23 -> 47.75 | N28: =M28/#REF!-1 ->  | O28: 240.14 | P28: =O28/SUM(#REF!,#REF!,#REF!,#REF!,#REF!,#REF!)-1 -> 
B29: 城际城乡网约车客运量(万人次) | C29: =[1]网约车!C21-[1]网约车!C23 -> 19.604 | D29: =C29/#REF!-1 ->  | E29: =[1]网约车!E21-[1]网约车!E23 -> 18.903 | F29: =E29/#REF!-1 ->  | G29: =[1]网约车!G21-[1]网约车!G23 -> 33.578 | H29: =G29/#REF!-1 ->  | I29: =[1]网约车!I21-[1]网约车!I23 -> 37.621 | J29: =I29/#REF!-1 ->  | K29: =[1]网约车!K21-[1]网约车!K23 -> 42.364 | L29: =K29/#REF!-1 ->  | M29: =[1]网约车!M21-[1]网约车!M23 -> 43.964 | N29: =M29/#REF!-1 ->  | O29: 196.03 | P29: =O29/SUM(#REF!,#REF!,#REF!,#REF!,#REF!,#REF!)-1 -> 
A30: 襄阳市 | B30: 总客运量（万人次） | C30: =C31+C32+C33+C34 -> 394.46 | D30: =C30/#REF!-1 ->  | E30: =E31+E32+E33+E34 -> 423.82 | F30: =E30/#REF!-1 ->  | G30: =G31+G32+G33+G34 -> 414.65 | H30: =G30/#REF!-1 ->  | I30: =I31+I32+I33+I34 -> 413.64 | J30: =I30/#REF!-1 ->  | K30: =K31+K32+K33+K34 -> 424.47 | L30: =K30/#REF!-1 ->  | M30: =M31+M32+M33+M34 -> 421.21 | N30: =M30/#REF!-1 ->  | O30: 2492.25 | P30: =O30/SUM(#REF!,#REF!,#REF!,#REF!,#REF!,#REF!)-1 -> 
B31: 公路班线客运量（万人次） | C31: =[1]班线包车!C22 -> 103.0089 | D31: =C31/#REF!-1 ->  | E31: =[1]班线包车!E22 -> 126.6864 | F31: =E31/#REF!-1 ->  | G31: =[1]班线包车!G22 -> 116.5618 | H31: =G31/#REF!-1 ->  | I31: =[1]班线包车!I22 -> 121.936 | J31: =I31/#REF!-1 ->  | K31: =[1]班线包车!K22 -> 120.2889 | L31: =K31/#REF!-1 ->  | M31: =[1]班线包车!M22 -> 113.3073 | N31: =M31/#REF!-1 ->  | O31: 701.79 | P31: =O31/SUM(#REF!,#REF!,#REF!,#REF!,#REF!,#REF!)-1 -> 
B32: 城际城乡公交客运量（万人次） | C32: =[1]公交!C25-[1]公交!C27 -> 175.9 | D32: =C32/#REF!-1 ->  | E32: =[1]公交!E25-[1]公交!E27 -> 190.5 | F32: =E32/#REF!-1 ->  | G32: =[1]公交!G25-[1]公交!G27 -> 182.06 | H32: =G32/#REF!-1 ->  | I32: =[1]公交!I25-[1]公交!I27 -> 184.46 | J32: =I32/#REF!-1 ->  | K32: =[1]公交!K25-[1]公交!K27 -> 192.52 | L32: =K32/#REF!-1 ->  | M32: =[1]公交!M25-[1]公交!M27 -> 194.2 | N32: =M32/#REF!-1 ->  | O32: 1119.64 | P32: =O32/SUM(#REF!,#REF!,#REF!,#REF!,#REF!,#REF!)-1 -> 
B33: 城际城乡巡游出租客运量（万人次） | C33: =[1]出租!C25-[1]出租!C27 -> 50.97 | D33: =C33/#REF!-1 ->  | E33: =[1]出租!E25-[1]出租!E27 -> 50.04 | F33: =E33/#REF!-1 ->  | G33: =[1]出租!G25-[1]出租!G27 -> 53 | H33: =G33/#REF!-1 ->  | I33: =[1]出租!I25-[1]出租!I27 -> 49.22 | J33: =I33/#REF!-1 ->  | K33: =[1]出租!K25-[1]出租!K27 -> 49.41 | L33: =K33/#REF!-1 ->  | M33: =[1]出租!M25-[1]出租!M27 -> 51.14 | N33: =M33/#REF!-1 ->  | O33: 303.78 | P33: =O33/SUM(#REF!,#REF!,#REF!,#REF!,#REF!,#REF!)-1 -> 
B34: 城际城乡网约车客运量(万人次) | C34: =[1]网约车!C25-[1]网约车!C27 -> 64.583 | D34: =C34/#REF!-1 ->  | E34: =[1]网约车!E25-[1]网约车!E27 -> 56.591 | F34: =E34/#REF!-1 ->  | G34: =[1]网约车!G25-[1]网约车!G27 -> 63.031 | H34: =G34/#REF!-1 ->  | I34: =[1]网约车!I25-[1]网约车!I27 -> 58.026 | J34: =I34/#REF!-1 ->  | K34: =[1]网约车!K25-[1]网约车!K27 -> 62.255 | L34: =K34/#REF!-1 ->  | M34: =[1]网约车!M25-[1]网约车!M27 -> 62.558 | N34: =M34/#REF!-1 ->  | O34: 367.04 | P34: =O34/SUM(#REF!,#REF!,#REF!,#REF!,#REF!,#REF!)-1 -> 
A35: 鄂州市 | B35: 总客运量（万人次） | C35: =C36+C37+C38+C39 -> 88.74 | D35: =C35/#REF!-1 ->  | E35: =E36+E37+E38+E39 -> 77.31 | F35: =E35/#REF!-1 ->  | G35: =G36+G37+G38+G39 -> 76.95 | H35: =G35/#REF!-1 ->  | I35: =I36+I37+I38+I39 -> 77.63 | J35: =I35/#REF!-1 ->  | K35: =K36+K37+K38+K39 -> 68.31 | L35: =K35/#REF!-1 ->  | M35: =M36+M37+M38+M39 -> 66.47 | N35: =M35/#REF!-1 ->  | O35: 455.40 | P35: =O35/SUM(#REF!,#REF!,#REF!,#REF!,#REF!,#REF!)-1 -> 
B36: 公路班线客运量（万人次） | C36: =[1]班线包车!C26 -> 58.6181 | D36: =C36/#REF!-1 ->  | E36: =[1]班线包车!E26 -> 51.2609 | F36: =E36/#REF!-1 ->  | G36: =[1]班线包车!G26 -> 51.4017 | H36: =G36/#REF!-1 ->  | I36: =[1]班线包车!I26 -> 51.5443 | J36: =I36/#REF!-1 ->  | K36: =[1]班线包车!K26 -> 51.6972 | L36: =K36/#REF!-1 ->  | M36: =[1]班线包车!M26 -> 50.2205 | N36: =M36/#REF!-1 ->  | O36: 314.74 | P36: =O36/SUM(#REF!,#REF!,#REF!,#REF!,#REF!,#REF!)-1 -> 
B37: 城际城乡公交客运量（万人次） | C37: =[1]公交!C29-[1]公交!C31 -> 15.76 | D37: =C37/#REF!-1 ->  | E37: =[1]公交!E29-[1]公交!E31 -> 15.72 | F37: =E37/#REF!-1 ->  | G37: =[1]公交!G29-[1]公交!G31 -> 16.14 | H37: =G37/#REF!-1 ->  | I37: =[1]公交!I29-[1]公交!I31 -> 16.81 | J37: =I37/#REF!-1 ->  | K37: =[1]公交!K29-[1]公交!K31 -> 11.82 | L37: =K37/#REF!-1 ->  | M37: =[1]公交!M29-[1]公交!M31 -> 11.38 | N37: =M37/#REF!-1 ->  | O37: =E37+C37+G37+I37+K37+M37 -> 87.63 | P37: =O37/SUM(#REF!,#REF!,#REF!,#REF!,#REF!,#REF!)-1 -> 
B38: 城际城乡巡游出租客运量（万人次） | C38: =[1]出租!C29-[1]出租!C31 -> 8.08 | D38: =C38/#REF!-1 ->  | E38: =[1]出租!E29-[1]出租!E31 -> 5.12 | F38: =E38/#REF!-1 ->  | G38: =[1]出租!G29-[1]出租!G31 -> 3.34 | H38: =G38/#REF!-1 ->  | I38: =[1]出租!I29-[1]出租!I31 -> 3.26 | J38: =I38/#REF!-1 ->  | K38: =[1]出租!K29-[1]出租!K31 -> 1.19 | L38: =K38/#REF!-1 ->  | M38: =[1]出租!M29-[1]出租!M31 -> 1.15 | N38: =M38/#REF!-1 ->  | O38: 22.14 | P38: =O38/SUM(#REF!,#REF!,#REF!,#REF!,#REF!,#REF!)-1 -> 
B39: 城际城乡网约车客运量(万人次) | C39: =[1]网约车!C29-[1]网约车!C31 -> 6.280 | D39: =C39/#REF!-1 ->  | E39: =[1]网约车!E29-[1]网约车!E31 -> 5.207 | F39: =E39/#REF!-1 ->  | G39: =[1]网约车!G29-[1]网约车!G31 -> 6.068 | H39: =G39/#REF!-1 ->  | I39: =[1]网约车!I29-[1]网约车!I31 -> 6.018 | J39: =I39/#REF!-1 ->  | K39: =[1]网约车!K29-[1]网约车!K31 -> 3.598 | L39: =K39/#REF!-1 ->  | M39: =[1]网约车!M29-[1]网约车!M31 -> 3.718 | N39: =M39/#REF!-1 ->  | O39: 30.89 | P39: =O39/SUM(#REF!,#REF!,#REF!,#REF!,#REF!,#REF!)-1 -> 
A40: 荆门市 | B40: 总客运量（万人次） | C40: =C41+C42+C43+C44 -> 100.63 | D40: =C40/#REF!-1 ->  | E40: =E41+E42+E43+E44 -> 102.00 | F40: =E40/#REF!-1 ->  | G40: =G41+G42+G43+G44 -> 98.88 | H40: =G40/#REF!-1 ->  | I40: =I41+I42+I43+I44 -> 99.05 | J40: =I40/#REF!-1 ->  | K40: =K41+K42+K43+K44 -> 98.95 | L40: =K40/#REF!-1 ->  | M40: =M41+M42+M43+M44 -> 90.01 | N40: =M40/#REF!-1 ->  | O40: 589.51 | P40: =O40/SUM(#REF!,#REF!,#REF!,#REF!,#REF!,#REF!)-1 -> 
B41: 公路班线客运量（万人次） | C41: =[1]班线包车!C28 -> 39.055 | D41: =C41/#REF!-1 ->  | E41: =[1]班线包车!E28 -> 40.8426 | F41: =E41/#REF!-1 ->  | G41: =[1]班线包车!G28 -> 40.7877 | H41: =G41/#REF!-1 ->  | I41: =[1]班线包车!I28 -> 41.5487 | J41: =I41/#REF!-1 ->  | K41: =[1]班线包车!K28 -> 41.3523 | L41: =K41/#REF!-1 ->  | M41: =[1]班线包车!M28 -> 35.2665 | N41: =M41/#REF!-1 ->  | O41: 238.85 | P41: =O41/SUM(#REF!,#REF!,#REF!,#REF!,#REF!,#REF!)-1 -> 
B42: 城际城乡公交客运量（万人次） | C42: =[1]公交!C33-[1]公交!C35 -> 12.36 | D42: =C42/#REF!-1 ->  | E42: =[1]公交!E33-[1]公交!E35 -> 12.14 | F42: =E42/#REF!-1 ->  | G42: =[1]公交!G33-[1]公交!G35 -> 12.27 | H42: =G42/#REF!-1 ->  | I42: =[1]公交!I33-[1]公交!I35 -> 12.24 | J42: =I42/#REF!-1 ->  | K42: =[1]公交!K33-[1]公交!K35 -> 11.85 | L42: =K42/#REF!-1 ->  | M42: =[1]公交!M33-[1]公交!M35 -> 11.82 | N42: =M42/#REF!-1 ->  | O42: 72.68 | P42: =O42/SUM(#REF!,#REF!,#REF!,#REF!,#REF!,#REF!)-1 -> 
B43: 城际城乡巡游出租客运量（万人次） | C43: =[1]出租!C33-[1]出租!C35 -> 29.99 | D43: =C43/#REF!-1 ->  | E43: =[1]出租!E33-[1]出租!E35 -> 32.36 | F43: =E43/#REF!-1 ->  | G43: =[1]出租!G33-[1]出租!G35 -> 28.51 | H43: =G43/#REF!-1 ->  | I43: =[1]出租!I33-[1]出租!I35 -> 27.53 | J43: =I43/#REF!-1 ->  | K43: =[1]出租!K33-[1]出租!K35 -> 27.69 | L43: =K43/#REF!-1 ->  | M43: =[1]出租!M33-[1]出租!M35 -> 25.1 | N43: =M43/#REF!-1 ->  | O43: 171.18 | P43: =O43/SUM(#REF!,#REF!,#REF!,#REF!,#REF!,#REF!)-1 -> 
B44: 城际城乡网约车客运量(万人次) | C44: =[1]网约车!C33-[1]网约车!C35 -> 19.223 | D44: =C44/#REF!-1 ->  | E44: =[1]网约车!E33-[1]网约车!E35 -> 16.659 | F44: =E44/#REF!-1 ->  | G44: =[1]网约车!G33-[1]网约车!G35 -> 17.307 | H44: =G44/#REF!-1 ->  | I44: =[1]网约车!I33-[1]网约车!I35 -> 17.727 | J44: =I44/#REF!-1 ->  | K44: =[1]网约车!K33-[1]网约车!K35 -> 18.054 | L44: =K44/#REF!-1 ->  | M44: =[1]网约车!M33-[1]网约车!M35 -> 17.823 | N44: =M44/#REF!-1 ->  | O44: 106.79 | P44: =O44/SUM(#REF!,#REF!,#REF!,#REF!,#REF!,#REF!)-1 -> 
A45: 孝感市 | B45: 总客运量（万人次） | C45: =C46+C47+C48+C49 -> 324.79 | D45: =C45/#REF!-1 ->  | E45: =E46+E47+E48+E49 -> 325.15 | F45: =E45/#REF!-1 ->  | G45: =G46+G47+G48+G49 -> 321.92 | H45: =G45/#REF!-1 ->  | I45: =I46+I47+I48+I49 -> 322.87 | J45: =I45/#REF!-1 ->  | K45: =K46+K47+K48+K49 -> 344.33 | L45: =K45/#REF!-1 ->  | M45: =M46+M47+M48+M49 -> 360.02 | N45: =M45/#REF!-1 ->  | O45: 1999.08 | P45: =O45/SUM(#REF!,#REF!,#REF!,#REF!,#REF!,#REF!)-1 -> 
B46: 公路班线客运量（万人次） | C46: =[1]班线包车!C32 -> 59.3255 | D46: =C46/#REF!-1 ->  | E46: =[1]班线包车!E32 -> 60.7363 | F46: =E46/#REF!-1 ->  | G46: =[1]班线包车!G32 -> 56.7931 | H46: =G46/#REF!-1 ->  | I46: =[1]班线包车!I32 -> 61.8497 | J46: =I46/#REF!-1 ->  | K46: =[1]班线包车!K32 -> 62.0998 | L46: =K46/#REF!-1 ->  | M46: =[1]班线包车!M32 -> 62.8884 | N46: =M46/#REF!-1 ->  | O46: 363.69 | P46: =O46/SUM(#REF!,#REF!,#REF!,#REF!,#REF!,#REF!)-1 -> 
B47: 城际城乡公交客运量（万人次） | C47: =[1]公交!C37-[1]公交!C39 -> 155.57 | D47: =C47/#REF!-1 ->  | E47: =[1]公交!E37-[1]公交!E39 -> 161 | F47: =E47/#REF!-1 ->  | G47: =[1]公交!G37-[1]公交!G39 -> 159.77 | H47: =G47/#REF!-1 ->  | I47: =[1]公交!I37-[1]公交!I39 -> 160.12 | J47: =I47/#REF!-1 ->  | K47: =[1]公交!K37-[1]公交!K39 -> 166.94 | L47: =K47/#REF!-1 ->  | M47: =[1]公交!M37-[1]公交!M39 -> 172.51 | N47: =M47/#REF!-1 ->  | O47: 975.91 | P47: =O47/SUM(#REF!,#REF!,#REF!,#REF!,#REF!,#REF!)-1 -> 
B48: 城际城乡巡游出租客运量（万人次） | C48: =[1]出租!C37-[1]出租!C39 -> 77.78 | D48: =C48/#REF!-1 ->  | E48: =[1]出租!E37-[1]出租!E39 -> 78.4 | F48: =E48/#REF!-1 ->  | G48: =[1]出租!G37-[1]出租!G39 -> 72.68 | H48: =G48/#REF!-1 ->  | I48: =[1]出租!I37-[1]出租!I39 -> 68.88 | J48: =I48/#REF!-1 ->  | K48: =[1]出租!K37-[1]出租!K39 -> 77.6 | L48: =K48/#REF!-1 ->  | M48: =[1]出租!M37-[1]出租!M39 -> 85.8 | N48: =M48/#REF!-1 ->  | O48: 461.14 | P48: =O48/SUM(#REF!,#REF!,#REF!,#REF!,#REF!,#REF!)-1 -> 
B49: 城际城乡网约车客运量(万人次) | C49: =[1]网约车!C37-[1]网约车!C39 -> 32.116 | D49: =C49/#REF!-1 ->  | E49: =[1]网约车!E37-[1]网约车!E39 -> 25.013 | F49: =E49/#REF!-1 ->  | G49: =[1]网约车!G37-[1]网约车!G39 -> 32.680 | H49: =G49/#REF!-1 ->  | I49: =[1]网约车!I37-[1]网约车!I39 -> 32.018 | J49: =I49/#REF!-1 ->  | K49: =[1]网约车!K37-[1]网约车!K39 -> 37.692 | L49: =K49/#REF!-1 ->  | M49: =[1]网约车!M37-[1]网约车!M39 -> 38.818 | N49: =M49/#REF!-1 ->  | O49: 198.34 | P49: =O49/SUM(#REF!,#REF!,#REF!,#REF!,#REF!,#REF!)-1 -> 
A50: 荆州市 | B50: 总客运量（万人次） | C50: =C51+C52+C53+C54 -> 300.58 | D50: =C50/#REF!-1 ->  | E50: =E51+E52+E53+E54 -> 314.29 | F50: =E50/#REF!-1 ->  | G50: =G51+G52+G53+G54 -> 289.88 | H50: =G50/#REF!-1 ->  | I50: =I51+I52+I53+I54 -> 283.65 | J50: =I50/#REF!-1 ->  | K50: =K51+K52+K53+K54 -> 290.06 | L50: =K50/#REF!-1 ->  | M50: =M51+M52+M53+M54 -> 285.23 | N50: =M50/#REF!-1 ->  | O50: 1763.68 | P50: =O50/SUM(#REF!,#REF!,#REF!,#REF!,#REF!,#REF!)-1 -> 
B51: 公路班线客运量（万人次） | C51: =[1]班线包车!C36 -> 133.6683 | D51: =C51/#REF!-1 ->  | E51: =[1]班线包车!E36 -> 143.6103 | F51: =E51/#REF!-1 ->  | G51: =[1]班线包车!G36 -> 139.5382 | H51: =G51/#REF!-1 ->  | I51: =[1]班线包车!I36 -> 141.171 | J51: =I51/#REF!-1 ->  | K51: =[1]班线包车!K36 -> 140.9257 | L51: =K51/#REF!-1 ->  | M51: =[1]班线包车!M36 -> 134.7257 | N51: =M51/#REF!-1 ->  | O51: 833.64 | P51: =O51/SUM(#REF!,#REF!,#REF!,#REF!,#REF!,#REF!)-1 -> 
B52: 城际城乡公交客运量（万人次） | C52: =[1]公交!C41-[1]公交!C43 -> 8.2 | D52: =C52/#REF!-1 ->  | E52: =[1]公交!E41-[1]公交!E43 -> 8.23 | F52: =E52/#REF!-1 ->  | G52: =[1]公交!G41-[1]公交!G43 -> 8.27 | H52: =G52/#REF!-1 ->  | I52: =[1]公交!I41-[1]公交!I43 -> 8.28 | J52: =I52/#REF!-1 ->  | K52: =[1]公交!K41-[1]公交!K43 -> 8.29 | L52: =K52/#REF!-1 ->  | M52: =[1]公交!M41-[1]公交!M43 -> 8.3 | N52: =M52/#REF!-1 ->  | O52: 49.57 | P52: =O52/SUM(#REF!,#REF!,#REF!,#REF!,#REF!,#REF!)-1 -> 
B53: 城际城乡巡游出租客运量（万人次） | C53: =[1]出租!C41-[1]出租!C43 -> 125.3 | D53: =C53/#REF!-1 ->  | E53: =[1]出租!E41-[1]出租!E43 -> 128.79 | F53: =E53/#REF!-1 ->  | G53: =[1]出租!G41-[1]出租!G43 -> 105.59 | H53: =G53/#REF!-1 ->  | I53: =[1]出租!I41-[1]出租!I43 -> 98.85 | J53: =I53/#REF!-1 ->  | K53: =[1]出租!K41-[1]出租!K43 -> 102.4 | L53: =K53/#REF!-1 ->  | M53: =[1]出租!M41-[1]出租!M43 -> 100.78 | N53: =M53/#REF!-1 ->  | O53: 661.71 | P53: =O53/SUM(#REF!,#REF!,#REF!,#REF!,#REF!,#REF!)-1 -> 
B54: 城际城乡网约车客运量(万人次) | C54: =[1]网约车!C41-[1]网约车!C43 -> 33.413 | D54: =C54/#REF!-1 ->  | E54: =[1]网约车!E41-[1]网约车!E43 -> 33.656 | F54: =E54/#REF!-1 ->  | G54: =[1]网约车!G41-[1]网约车!G43 -> 36.479 | H54: =G54/#REF!-1 ->  | I54: =[1]网约车!I41-[1]网约车!I43 -> 35.349 | J54: =I54/#REF!-1 ->  | K54: =[1]网约车!K41-[1]网约车!K43 -> 38.439 | L54: =K54/#REF!-1 ->  | M54: =[1]网约车!M41-[1]网约车!M43 -> 41.422 | N54: =M54/#REF!-1 ->  | O54: 218.76 | P54: =O54/SUM(#REF!,#REF!,#REF!,#REF!,#REF!,#REF!)-1 -> 
A55: 黄冈市 | B55: 总客运量（万人次） | C55: =C56+C57+C58+C59 -> 419.83 | D55: =C55/#REF!-1 ->  | E55: =E56+E57+E58+E59 -> 428.94 | F55: =E55/#REF!-1 ->  | G55: =G56+G57+G58+G59 -> 437.66 | H55: =G55/#REF!-1 ->  | I55: =I56+I57+I58+I59 -> 445.05 | J55: =I55/#REF!-1 ->  | K55: =K56+K57+K58+K59 -> 456.71 | L55: =K55/#REF!-1 ->  | M55: =M56+M57+M58+M59 -> 441.80 | N55: =M55/#REF!-1 ->  | O55: 2629.98 | P55: =O55/SUM(#REF!,#REF!,#REF!,#REF!,#REF!,#REF!)-1 -> 
B56: 公路班线客运量（万人次） | C56: =[1]班线包车!C38 -> 136.7024 | D56: =C56/#REF!-1 ->  | E56: =[1]班线包车!E38 -> 146.6421 | F56: =E56/#REF!-1 ->  | G56: =[1]班线包车!G38 -> 136.5708 | H56: =G56/#REF!-1 ->  | I56: =[1]班线包车!I38 -> 136.3122 | J56: =I56/#REF!-1 ->  | K56: =[1]班线包车!K38 -> 142.7334 | L56: =K56/#REF!-1 ->  | M56: =[1]班线包车!M38 -> 133.5838 | N56: =M56/#REF!-1 ->  | O56: 832.54 | P56: =O56/SUM(#REF!,#REF!,#REF!,#REF!,#REF!,#REF!)-1 -> 
B57: 城际城乡公交客运量（万人次） | C57: =[1]公交!C45-[1]公交!C47 -> 239.64 | D57: =C57/#REF!-1 ->  | E57: =[1]公交!E45-[1]公交!E47 -> 237.26 | F57: =E57/#REF!-1 ->  | G57: =[1]公交!G45-[1]公交!G47 -> 256.38 | H57: =G57/#REF!-1 ->  | I57: =[1]公交!I45-[1]公交!I47 -> 262.69 | J57: =I57/#REF!-1 ->  | K57: =[1]公交!K45-[1]公交!K47 -> 263.69 | L57: =K57/#REF!-1 ->  | M57: =[1]公交!M45-[1]公交!M47 -> 256.98 | N57: =M57/#REF!-1 ->  | O57: 1516.64 | P57: =O57/SUM(#REF!,#REF!,#REF!,#REF!,#REF!,#REF!)-1 -> 
B58: 城际城乡巡游出租客运量（万人次） | C58: =[1]出租!C45-[1]出租!C47 -> 26.18 | D58: =C58/#REF!-1 ->  | E58: =[1]出租!E45-[1]出租!E47 -> 27.18 | F58: =E58/#REF!-1 ->  | G58: =[1]出租!G45-[1]出租!G47 -> 26 | H58: =G58/#REF!-1 ->  | I58: =[1]出租!I45-[1]出租!I47 -> 27.76 | J58: =I58/#REF!-1 ->  | K58: =[1]出租!K45-[1]出租!K47 -> 29.87 | L58: =K58/#REF!-1 ->  | M58: =[1]出租!M45-[1]出租!M47 -> 29.9 | N58: =M58/#REF!-1 ->  | O58: 166.89 | P58: =O58/SUM(#REF!,#REF!,#REF!,#REF!,#REF!,#REF!)-1 -> 
B59: 城际城乡网约车客运量(万人次) | C59: =[1]网约车!C45-[1]网约车!C47 -> 17.303 | D59: =C59/#REF!-1 ->  | E59: =[1]网约车!E45-[1]网约车!E47 -> 17.861 | F59: =E59/#REF!-1 ->  | G59: =[1]网约车!G45-[1]网约车!G47 -> 18.709 | H59: =G59/#REF!-1 ->  | I59: =[1]网约车!I45-[1]网约车!I47 -> 18.284 | J59: =I59/#REF!-1 ->  | K59: =[1]网约车!K45-[1]网约车!K47 -> 20.415 | L59: =K59/#REF!-1 ->  | M59: =[1]网约车!M45-[1]网约车!M47 -> 21.334 | N59: =M59/#REF!-1 ->  | O59: 113.91 | P59: =O59/SUM(#REF!,#REF!,#REF!,#REF!,#REF!,#REF!)-1 -> 
A60: 咸宁市 | B60: 总客运量（万人次） | C60: =C61+C62+C63+C64 -> 278.57 | D60: =C60/#REF!-1 ->  | E60: =E61+E62+E63+E64 -> 296.61 | F60: =E60/#REF!-1 ->  | G60: =G61+G62+G63+G64 -> 325.94 | H60: =G60/#REF!-1 ->  | I60: =I61+I62+I63+I64 -> 329.57 | J60: =I60/#REF!-1 ->  | K60: =K61+K62+K63+K64 -> 341.05 | L60: =K60/#REF!-1 ->  | M60: =M61+M62+M63+M64 -> 317.92 | N60: =M60/#REF!-1 ->  | O60: 1889.65 | P60: =O60/SUM(#REF!,#REF!,#REF!,#REF!,#REF!,#REF!)-1 -> 
B61: 公路班线客运量（万人次） | C61: =[1]班线包车!C42 -> 39.3094 | D61: =C61/#REF!-1 ->  | E61: =[1]班线包车!E42 -> 56.4335 | F61: =E61/#REF!-1 ->  | G61: =[1]班线包车!G42 -> 56.8116 | H61: =G61/#REF!-1 ->  | I61: =[1]班线包车!I42 -> 58.6924 | J61: =I61/#REF!-1 ->  | K61: =[1]班线包车!K42 -> 58.0517 | L61: =K61/#REF!-1 ->  | M61: =[1]班线包车!M42 -> 52.6658 | N61: =M61/#REF!-1 ->  | O61: 321.96 | P61: =O61/SUM(#REF!,#REF!,#REF!,#REF!,#REF!,#REF!)-1 -> 
B62: 城际城乡公交客运量（万人次） | C62: =[1]公交!C49-[1]公交!C51 -> 154.96 | D62: =C62/#REF!-1 ->  | E62: =[1]公交!E49-[1]公交!E51 -> 163.37 | F62: =E62/#REF!-1 ->  | G62: =[1]公交!G49-[1]公交!G51 -> 186.13 | H62: =G62/#REF!-1 ->  | I62: =[1]公交!I49-[1]公交!I51 -> 195.03 | J62: =I62/#REF!-1 ->  | K62: =[1]公交!K49-[1]公交!K51 -> 200.33 | L62: =K62/#REF!-1 ->  | M62: =[1]公交!M49-[1]公交!M51 -> 184.33 | N62: =M62/#REF!-1 ->  | O62: 1084.15 | P62: =O62/SUM(#REF!,#REF!,#REF!,#REF!,#REF!,#REF!)-1 -> 
B63: 城际城乡巡游出租客运量（万人次） | C63: =[1]出租!C49-[1]出租!C51 -> 47.7 | D63: =C63/#REF!-1 ->  | E63: =[1]出租!E49-[1]出租!E51 -> 47.99 | F63: =E63/#REF!-1 ->  | G63: =[1]出租!G49-[1]出租!G51 -> 49.53 | H63: =G63/#REF!-1 ->  | I63: =[1]出租!I49-[1]出租!I51 -> 46.84 | J63: =I63/#REF!-1 ->  | K63: =[1]出租!K49-[1]出租!K51 -> 47.85 | L63: =K63/#REF!-1 ->  | M63: =[1]出租!M49-[1]出租!M51 -> 45.38 | N63: =M63/#REF!-1 ->  | O63: 285.29 | P63: =O63/SUM(#REF!,#REF!,#REF!,#REF!,#REF!,#REF!)-1 -> 
B64: 城际城乡网约车客运量(万人次) | C64: =[1]网约车!C49-[1]网约车!C51 -> 36.602 | D64: =C64/#REF!-1 ->  | E64: =[1]网约车!E49-[1]网约车!E51 -> 28.814 | F64: =E64/#REF!-1 ->  | G64: =[1]网约车!G49-[1]网约车!G51 -> 33.468 | H64: =G64/#REF!-1 ->  | I64: =[1]网约车!I49-[1]网约车!I51 -> 29.003 | J64: =I64/#REF!-1 ->  | K64: =[1]网约车!K49-[1]网约车!K51 -> 34.814 | L64: =K64/#REF!-1 ->  | M64: =[1]网约车!M49-[1]网约车!M51 -> 35.541 | N64: =M64/#REF!-1 ->  | O64: 198.24 | P64: =O64/SUM(#REF!,#REF!,#REF!,#REF!,#REF!,#REF!)-1 -> 
A65: 随州市 | B65: 总客运量（万人次） | C65: =C66+C67+C68+C69 -> 170.61 | D65: =C65/#REF!-1 ->  | E65: =E66+E67+E68+E69 -> 175.43 | F65: =E65/#REF!-1 ->  | G65: =G66+G67+G68+G69 -> 172.99 | H65: =G65/#REF!-1 ->  | I65: =I66+I67+I68+I69 -> 172.17 | J65: =I65/#REF!-1 ->  | K65: =K66+K67+K68+K69 -> 174.67 | L65: =K65/#REF!-1 ->  | M65: =M66+M67+M68+M69 -> 170.85 | N65: =M65/#REF!-1 ->  | O65: 1036.73 | P65: =O65/SUM(#REF!,#REF!,#REF!,#REF!,#REF!,#REF!)-1 -> 
B66: 公路班线客运量（万人次） | C66: =[1]班线包车!C44 -> 114.3916 | D66: =C66/#REF!-1 ->  | E66: =[1]班线包车!E44 -> 120.983 | F66: =E66/#REF!-1 ->  | G66: =[1]班线包车!G44 -> 119.5115 | H66: =G66/#REF!-1 ->  | I66: =[1]班线包车!I44 -> 120.3786 | J66: =I66/#REF!-1 ->  | K66: =[1]班线包车!K44 -> 122.8015 | L66: =K66/#REF!-1 ->  | M66: =[1]班线包车!M44 -> 121.1953 | N66: =M66/#REF!-1 ->  | O66: 719.26 | P66: =O66/SUM(#REF!,#REF!,#REF!,#REF!,#REF!,#REF!)-1 -> 
B67: 城际城乡公交客运量（万人次） | C67: =[1]公交!C53-[1]公交!C55 -> 36.22 | D67: =C67/#REF!-1 ->  | E67: =[1]公交!E53-[1]公交!E55 -> 34.03 | F67: =E67/#REF!-1 ->  | G67: =[1]公交!G53-[1]公交!G55 -> 33.84 | H67: =G67/#REF!-1 ->  | I67: =[1]公交!I53-[1]公交!I55 -> 32.5 | J67: =I67/#REF!-1 ->  | K67: =[1]公交!K53-[1]公交!K55 -> 32.56 | L67: =K67/#REF!-1 ->  | M67: =[1]公交!M53-[1]公交!M55 -> 30.22 | N67: =M67/#REF!-1 ->  | O67: 199.37 | P67: =O67/SUM(#REF!,#REF!,#REF!,#REF!,#REF!,#REF!)-1 -> 
B68: 城际城乡巡游出租客运量（万人次） | C68: =[1]出租!C53-[1]出租!C55 -> 10.22 | D68: =C68/#REF!-1 ->  | E68: =[1]出租!E53-[1]出租!E55 -> 11.06 | F68: =E68/#REF!-1 ->  | G68: =[1]出租!G53-[1]出租!G55 -> 10.71 | H68: =G68/#REF!-1 ->  | I68: =[1]出租!I53-[1]出租!I55 -> 10.98 | J68: =I68/#REF!-1 ->  | K68: =[1]出租!K53-[1]出租!K55 -> 11.09 | L68: =K68/#REF!-1 ->  | M68: =[1]出租!M53-[1]出租!M55 -> 11 | N68: =M68/#REF!-1 ->  | O68: 65.06 | P68: =O68/SUM(#REF!,#REF!,#REF!,#REF!,#REF!,#REF!)-1 -> 
B69: 城际城乡网约车客运量(万人次) | C69: =[1]网约车!C53-[1]网约车!C55 -> 9.782 | D69: =C69/#REF!-1 ->  | E69: =[1]网约车!E53-[1]网约车!E55 -> 9.356 | F69: =E69/#REF!-1 ->  | G69: =[1]网约车!G53-[1]网约车!G55 -> 8.928 | H69: =G69/#REF!-1 ->  | I69: =[1]网约车!I53-[1]网约车!I55 -> 8.316 | J69: =I69/#REF!-1 ->  | K69: =[1]网约车!K53-[1]网约车!K55 -> 8.218 | L69: =K69/#REF!-1 ->  | M69: =[1]网约车!M53-[1]网约车!M55 -> 8.438 | N69: =M69/#REF!-1 ->  | O69: =E69+C69+G69+I69+K69+M69 -> 53.04 | P69: =O69/SUM(#REF!,#REF!,#REF!,#REF!,#REF!,#REF!)-1 -> 
A70: 恩施州 | B70: 总客运量（万人次） | C70: =C71+C72+C73+C74 -> 345.74 | D70: =C70/#REF!-1 ->  | E70: =E71+E72+E73+E74 -> 340.89 | F70: =E70/#REF!-1 ->  | G70: =G71+G72+G73+G74 -> 349.40 | H70: =G70/#REF!-1 ->  | I70: =I71+I72+I73+I74 -> 366.09 | J70: =I70/#REF!-1 ->  | K70: =K71+K72+K73+K74 -> 377.95 | L70: =K70/#REF!-1 ->  | M70: =M71+M72+M73+M74 -> 365.47 | N70: =M70/#REF!-1 ->  | O70: 2145.54 | P70: =O70/SUM(#REF!,#REF!,#REF!,#REF!,#REF!,#REF!)-1 -> 
B71: 公路班线客运量（万人次） | C71: =[1]班线包车!C48 -> 146.7156 | D71: =C71/#REF!-1 ->  | E71: =[1]班线包车!E48 -> 164.4127 | F71: =E71/#REF!-1 ->  | G71: =[1]班线包车!G48 -> 162.0982 | H71: =G71/#REF!-1 ->  | I71: =[1]班线包车!I48 -> 182.7013 | J71: =I71/#REF!-1 ->  | K71: =[1]班线包车!K48 -> 190.2239 | L71: =K71/#REF!-1 ->  | M71: =[1]班线包车!M48 -> 170.9711 | N71: =M71/#REF!-1 ->  | O71: 1017.12 | P71: =O71/SUM(#REF!,#REF!,#REF!,#REF!,#REF!,#REF!)-1 -> 
B72: 城际城乡公交客运量（万人次） | C72: =[1]公交!C57-[1]公交!C59 -> 101.06 | D72: =C72/#REF!-1 ->  | E72: =[1]公交!E57-[1]公交!E59 -> 76.08 | F72: =E72/#REF!-1 ->  | G72: =[1]公交!G57-[1]公交!G59 -> 92.72 | H72: =G72/#REF!-1 ->  | I72: =[1]公交!I57-[1]公交!I59 -> 94.31 | J72: =I72/#REF!-1 ->  | K72: =[1]公交!K57-[1]公交!K59 -> 98.21 | L72: =K72/#REF!-1 ->  | M72: =[1]公交!M57-[1]公交!M59 -> 98.12 | N72: =M72/#REF!-1 ->  | O72: 560.50 | P72: =O72/SUM(#REF!,#REF!,#REF!,#REF!,#REF!,#REF!)-1 -> 
B73: 城际城乡巡游出租客运量（万人次） | C73: =[1]出租!C57-[1]出租!C59 -> 63.17 | D73: =C73/#REF!-1 ->  | E73: =[1]出租!E57-[1]出租!E59 -> 71.99 | F73: =E73/#REF!-1 ->  | G73: =[1]出租!G57-[1]出租!G59 -> 57.32 | H73: =G73/#REF!-1 ->  | I73: =[1]出租!I57-[1]出租!I59 -> 52.64 | J73: =I73/#REF!-1 ->  | K73: =[1]出租!K57-[1]出租!K59 -> 50.62 | L73: =K73/#REF!-1 ->  | M73: =[1]出租!M57-[1]出租!M59 -> 53.65 | N73: =M73/#REF!-1 ->  | O73: 349.39 | P73: =O73/SUM(#REF!,#REF!,#REF!,#REF!,#REF!,#REF!)-1 -> 
B74: 城际城乡网约车客运量(万人次) | C74: =[1]网约车!C57-[1]网约车!C59 -> 34.797 | D74: =C74/#REF!-1 ->  | E74: =[1]网约车!E57-[1]网约车!E59 -> 28.410 | F74: =E74/#REF!-1 ->  | G74: =[1]网约车!G57-[1]网约车!G59 -> 37.262 | H74: =G74/#REF!-1 ->  | I74: =[1]网约车!I57-[1]网约车!I59 -> 36.438 | J74: =I74/#REF!-1 ->  | K74: =[1]网约车!K57-[1]网约车!K59 -> 38.893 | L74: =K74/#REF!-1 ->  | M74: =[1]网约车!M57-[1]网约车!M59 -> 42.726 | N74: =M74/#REF!-1 ->  | O74: 218.52 | P74: =O74/SUM(#REF!,#REF!,#REF!,#REF!,#REF!,#REF!)-1 -> 
A75: 仙桃市 | B75: 总客运量（万人次） | C75: =C76+C77+C78+C79 -> 51.47 | D75: =C75/#REF!-1 ->  | E75: =E76+E77+E78+E79 -> 51.67 | F75: =E75/#REF!-1 ->  | G75: =G76+G77+G78+G79 -> 50.31 | H75: =G75/#REF!-1 ->  | I75: =I76+I77+I78+I79 -> 49.40 | J75: =I75/#REF!-1 ->  | K75: =K76+K77+K78+K79 -> 50.29 | L75: =K75/#REF!-1 ->  | M75: =M76+M77+M78+M79 -> 50.71 | N75: =M75/#REF!-1 ->  | O75: 303.86 | P75: =O75/SUM(#REF!,#REF!,#REF!,#REF!,#REF!,#REF!)-1 -> 
B76: 公路班线客运量（万人次） | C76: =[1]班线包车!C50 -> 9.2372 | D76: =C76/#REF!-1 ->  | E76: =[1]班线包车!E50 -> 9.1901 | F76: =E76/#REF!-1 ->  | G76: =[1]班线包车!G50 -> 9.1723 | H76: =G76/#REF!-1 ->  | I76: =[1]班线包车!I50 -> 9.1413 | J76: =I76/#REF!-1 ->  | K76: =[1]班线包车!K50 -> 9.3403 | L76: =K76/#REF!-1 ->  | M76: =[1]班线包车!M50 -> 9.9419 | N76: =M76/#REF!-1 ->  | O76: 56.02 | P76: =O76/SUM(#REF!,#REF!,#REF!,#REF!,#REF!,#REF!)-1 -> 
B77: 城际城乡公交客运量（万人次） | C77: =[1]公交!C61-[1]公交!C63 -> 23.5 | D77: =C77/#REF!-1 ->  | E77: =[1]公交!E61-[1]公交!E63 -> 24.13 | F77: =E77/#REF!-1 ->  | G77: =[1]公交!G61-[1]公交!G63 -> 23.4 | H77: =G77/#REF!-1 ->  | I77: =[1]公交!I61-[1]公交!I63 -> 23.5 | J77: =I77/#REF!-1 ->  | K77: =[1]公交!K61-[1]公交!K63 -> 23.36 | L77: =K77/#REF!-1 ->  | M77: =[1]公交!M61-[1]公交!M63 -> 23.01 | N77: =M77/#REF!-1 ->  | O77: 140.90 | P77: =O77/SUM(#REF!,#REF!,#REF!,#REF!,#REF!,#REF!)-1 -> 
B78: 城际城乡巡游出租客运量（万人次） | C78: =[1]出租!C61-[1]出租!C63 -> 6.97 | D78: =C78/#REF!-1 ->  | E78: =[1]出租!E61-[1]出租!E63 -> 7.3 | F78: =E78/#REF!-1 ->  | G78: =[1]出租!G61-[1]出租!G63 -> 7.15 | H78: =G78/#REF!-1 ->  | I78: =[1]出租!I61-[1]出租!I63 -> 6.62 | J78: =I78/#REF!-1 ->  | K78: =[1]出租!K61-[1]出租!K63 -> 6.4 | L78: =K78/#REF!-1 ->  | M78: =[1]出租!M61-[1]出租!M63 -> 6.48 | N78: =M78/#REF!-1 ->  | O78: 40.92 | P78: =O78/SUM(#REF!,#REF!,#REF!,#REF!,#REF!,#REF!)-1 -> 
B79: 城际城乡网约车客运量(万人次) | C79: =[1]网约车!C61-[1]网约车!C63 -> 11.764 | D79: =C79/#REF!-1 ->  | E79: =[1]网约车!E61-[1]网约车!E63 -> 11.047 | F79: =E79/#REF!-1 ->  | G79: =[1]网约车!G61-[1]网约车!G63 -> 10.590 | H79: =G79/#REF!-1 ->  | I79: =[1]网约车!I61-[1]网约车!I63 -> 10.139 | J79: =I79/#REF!-1 ->  | K79: =[1]网约车!K61-[1]网约车!K63 -> 11.194 | L79: =K79/#REF!-1 ->  | M79: =[1]网约车!M61-[1]网约车!M63 -> 11.282 | N79: =M79/#REF!-1 ->  | O79: 66.02 | P79: =O79/SUM(#REF!,#REF!,#REF!,#REF!,#REF!,#REF!)-1 -> 
A80: 潜江市 | B80: 总客运量（万人次） | C80: =C81+C82+C83+C84 -> 142.24 | D80: =C80/#REF!-1 ->  | E80: =E81+E82+E83+E84 -> 146.50 | F80: =E80/#REF!-1 ->  | G80: =G81+G82+G83+G84 -> 135.28 | H80: =G80/#REF!-1 ->  | I80: =I81+I82+I83+I84 -> 137.07 | J80: =I80/#REF!-1 ->  | K80: =K81+K82+K83+K84 -> 150.49 | L80: =K80/#REF!-1 ->  | M80: =M81+M82+M83+M84 -> 154.39 | N80: =M80/#REF!-1 ->  | O80: 865.98 | P80: =O80/SUM(#REF!,#REF!,#REF!,#REF!,#REF!,#REF!)-1 -> 
B81: 公路班线客运量（万人次） | C81: =[1]班线包车!C52 -> 2.2826 | D81: =C81/#REF!-1 ->  | E81: =[1]班线包车!E52 -> 2.1525 | F81: =E81/#REF!-1 ->  | G81: =[1]班线包车!G52 -> 2.2929 | H81: =G81/#REF!-1 ->  | I81: =[1]班线包车!I52 -> 2.26 | J81: =I81/#REF!-1 ->  | K81: =[1]班线包车!K52 -> 2.0421 | L81: =K81/#REF!-1 ->  | M81: =[1]班线包车!M52 -> 2.0576 | N81: =M81/#REF!-1 ->  | O81: 13.09 | P81: =O81/SUM(#REF!,#REF!,#REF!,#REF!,#REF!,#REF!)-1 -> 
B82: 城际城乡公交客运量（万人次） | C82: =[1]公交!C65-[1]公交!C67 -> 124.15 | D82: =C82/#REF!-1 ->  | E82: =[1]公交!E65-[1]公交!E67 -> 128.99 | F82: =E82/#REF!-1 ->  | G82: =[1]公交!G65-[1]公交!G67 -> 118.21 | H82: =G82/#REF!-1 ->  | I82: =[1]公交!I65-[1]公交!I67 -> 118.81 | J82: =I82/#REF!-1 ->  | K82: =[1]公交!K65-[1]公交!K67 -> 127.19 | L82: =K82/#REF!-1 ->  | M82: =[1]公交!M65-[1]公交!M67 -> 134.92 | N82: =M82/#REF!-1 ->  | O82: 752.27 | P82: =O82/SUM(#REF!,#REF!,#REF!,#REF!,#REF!,#REF!)-1 -> 
B83: 城际城乡巡游出租客运量（万人次） | C83: =[1]出租!C65-[1]出租!C67 -> 9.87 | D83: =C83/#REF!-1 ->  | E83: =[1]出租!E65-[1]出租!E67 -> 9.63 | F83: =E83/#REF!-1 ->  | G83: =[1]出租!G65-[1]出租!G67 -> 9.25 | H83: =G83/#REF!-1 ->  | I83: =[1]出租!I65-[1]出租!I67 -> 10.11 | J83: =I83/#REF!-1 ->  | K83: =[1]出租!K65-[1]出租!K67 -> 14.03 | L83: =K83/#REF!-1 ->  | M83: =[1]出租!M65-[1]出租!M67 -> 10.87 | N83: =M83/#REF!-1 ->  | O83: 63.76 | P83: =O83/SUM(#REF!,#REF!,#REF!,#REF!,#REF!,#REF!)-1 -> 
B84: 城际城乡网约车客运量(万人次) | C84: =[1]网约车!C65-[1]网约车!C67 -> 5.942 | D84: =C84/#REF!-1 ->  | E84: =[1]网约车!E65-[1]网约车!E67 -> 5.724 | F84: =E84/#REF!-1 ->  | G84: =[1]网约车!G65-[1]网约车!G67 -> 5.531 | H84: =G84/#REF!-1 ->  | I84: =[1]网约车!I65-[1]网约车!I67 -> 5.892 | J84: =I84/#REF!-1 ->  | K84: =[1]网约车!K65-[1]网约车!K67 -> 7.231 | L84: =K84/#REF!-1 ->  | M84: =[1]网约车!M65-[1]网约车!M67 -> 6.541 | N84: =M84/#REF!-1 ->  | O84: 36.86 | P84: =O84/SUM(#REF!,#REF!,#REF!,#REF!,#REF!,#REF!)-1 -> 
A85: 天门市 | B85: 总客运量（万人次） | C85: =C86+C87+C88+C89 -> 96.26 | D85: =C85/#REF!-1 ->  | E85: =E86+E87+E88+E89 -> 107.74 | F85: =E85/#REF!-1 ->  | G85: =G86+G87+G88+G89 -> 100.26 | H85: =G85/#REF!-1 ->  | I85: =I86+I87+I88+I89 -> 101.95 | J85: =I85/#REF!-1 ->  | K85: =K86+K87+K88+K89 -> 105.93 | L85: =K85/#REF!-1 ->  | M85: =M86+M87+M88+M89 -> 101.78 | N85: =M85/#REF!-1 ->  | O85: 613.91 | P85: =O85/SUM(#REF!,#REF!,#REF!,#REF!,#REF!,#REF!)-1 -> 
B86: 公路班线客运量（万人次） | C86: =[1]班线包车!C54 -> 3.0068 | D86: =C86/#REF!-1 ->  | E86: =[1]班线包车!E54 -> 3.7154 | F86: =E86/#REF!-1 ->  | G86: =[1]班线包车!G54 -> 3.4623 | H86: =G86/#REF!-1 ->  | I86: =[1]班线包车!I54 -> 4.4253 | J86: =I86/#REF!-1 ->  | K86: =[1]班线包车!K54 -> 4.3403 | L86: =K86/#REF!-1 ->  | M86: =[1]班线包车!M54 -> 4.3662 | N86: =M86/#REF!-1 ->  | O86: 23.32 | P86: =O86/SUM(#REF!,#REF!,#REF!,#REF!,#REF!,#REF!)-1 -> 
B87: 城际城乡公交客运量（万人次） | C87: =[1]公交!C69-[1]公交!C71 -> 54.9 | D87: =C87/#REF!-1 ->  | E87: =[1]公交!E69-[1]公交!E71 -> 66.1 | F87: =E87/#REF!-1 ->  | G87: =[1]公交!G69-[1]公交!G71 -> 60.75 | H87: =G87/#REF!-1 ->  | I87: =[1]公交!I69-[1]公交!I71 -> 62.15 | J87: =I87/#REF!-1 ->  | K87: =[1]公交!K69-[1]公交!K71 -> 64.48 | L87: =K87/#REF!-1 ->  | M87: =[1]公交!M69-[1]公交!M71 -> 63.16 | N87: =M87/#REF!-1 ->  | O87: 371.54 | P87: =O87/SUM(#REF!,#REF!,#REF!,#REF!,#REF!,#REF!)-1 -> 
B88: 城际城乡巡游出租客运量（万人次） | C88: =[1]出租!C69-[1]出租!C71 -> 20.7 | D88: =C88/#REF!-1 ->  | E88: =[1]出租!E69-[1]出租!E71 -> 21.66 | F88: =E88/#REF!-1 ->  | G88: =[1]出租!G69-[1]出租!G71 -> 20.37 | H88: =G88/#REF!-1 ->  | I88: =[1]出租!I69-[1]出租!I71 -> 20.05 | J88: =I88/#REF!-1 ->  | K88: =[1]出租!K69-[1]出租!K71 -> 20.6 | L88: =K88/#REF!-1 ->  | M88: =[1]出租!M69-[1]出租!M71 -> 17.43 | N88: =M88/#REF!-1 ->  | O88: 120.81 | P88: =O88/SUM(#REF!,#REF!,#REF!,#REF!,#REF!,#REF!)-1 -> 
B89: 城际城乡网约车客运量(万人次) | C89: =[1]网约车!C69-[1]网约车!C71 -> 17.652 | D89: =C89/#REF!-1 ->  | E89: =[1]网约车!E69-[1]网约车!E71 -> 16.263 | F89: =E89/#REF!-1 ->  | G89: =[1]网约车!G69-[1]网约车!G71 -> 15.673 | H89: =G89/#REF!-1 ->  | I89: =[1]网约车!I69-[1]网约车!I71 -> 15.324 | J89: =I89/#REF!-1 ->  | K89: =[1]网约车!K69-[1]网约车!K71 -> 16.509 | L89: =K89/#REF!-1 ->  | M89: =[1]网约车!M69-[1]网约车!M71 -> 16.820 | N89: =M89/#REF!-1 ->  | O89: 98.24 | P89: =O89/SUM(#REF!,#REF!,#REF!,#REF!,#REF!,#REF!)-1 -> 
A90: 林区 | B90: 总客运量（万人次） | C90: =C91+C92+C93+C94 -> 9.37 | D90: =C90/#REF!-1 ->  | E90: =E91+E92+E93+E94 -> 18.71 | F90: =E90/#REF!-1 ->  | G90: =G91+G92+G93+G94 -> 5.79 | H90: =G90/#REF!-1 ->  | I90: =I91+I92+I93+I94 -> 8.24 | J90: =I90/#REF!-1 ->  | K90: =K91+K92+K93+K94 -> 10.47 | L90: =K90/#REF!-1 ->  | M90: =M91+M92+M93+M94 -> 6.70 | N90: =M90/#REF!-1 ->  | O90: 59.28 | P90: =O90/SUM(#REF!,#REF!,#REF!,#REF!,#REF!,#REF!)-1 -> 
B91: 公路班线客运量（万人次） | C91: =[1]班线包车!C56 -> 5.8705 | D91: =C91/#REF!-1 ->  | E91: =[1]班线包车!E56 -> 15.4874 | F91: =E91/#REF!-1 ->  | G91: =[1]班线包车!G56 -> 2.543 | H91: =G91/#REF!-1 ->  | I91: =[1]班线包车!I56 -> 4.9911 | J91: =I91/#REF!-1 ->  | K91: =[1]班线包车!K56 -> 7.1112 | L91: =K91/#REF!-1 ->  | M91: =[1]班线包车!M56 -> 3.146 | N91: =M91/#REF!-1 ->  | O91: 39.15 | P91: =O91/SUM(#REF!,#REF!,#REF!,#REF!,#REF!,#REF!)-1 -> 
B92: 城际城乡公交客运量（万人次） | C92: =[1]公交!C73-[1]公交!C75 -> 1.05 | D92: =C92/#REF!-1 ->  | E92: =[1]公交!E73-[1]公交!E75 -> 0.8 | F92: =E92/#REF!-1 ->  | G92: =[1]公交!G73-[1]公交!G75 -> 0.8 | H92: =G92/#REF!-1 ->  | I92: =[1]公交!I73-[1]公交!I75 -> 0.8 | J92: =I92/#REF!-1 ->  | K92: =[1]公交!K73-[1]公交!K75 -> 0.9 | L92: =K92/#REF!-1 ->  | M92: =[1]公交!M73-[1]公交!M75 -> 1.07 | N92: =M92/#REF!-1 ->  | O92: 5.42 | P92: =O92/SUM(#REF!,#REF!,#REF!,#REF!,#REF!,#REF!)-1 -> 
B93: 城际城乡巡游出租客运量（万人次） | C93: =[1]出租!C73-[1]出租!C75 -> 2.39 | D93: =C93/#REF!-1 ->  | E93: =[1]出租!E73-[1]出租!E75 -> 2.38 | F93: =E93/#REF!-1 ->  | G93: =[1]出租!G73-[1]出租!G75 -> 2.38 | H93: =G93/#REF!-1 ->  | I93: =[1]出租!I73-[1]出租!I75 -> 2.38 | J93: =I93/#REF!-1 ->  | K93: =[1]出租!K73-[1]出租!K75 -> 2.38 | L93: =K93/#REF!-1 ->  | M93: =[1]出租!M73-[1]出租!M75 -> 2.39 | N93: =M93/#REF!-1 ->  | O93: 14.30 | P93: =O93/SUM(#REF!,#REF!,#REF!,#REF!,#REF!,#REF!)-1 -> 
B94: 城际城乡网约车客运量(万人次) | C94: =[1]网约车!C73-[1]网约车!C75 -> 0.061 | D94: =C94/#REF!-1 ->  | E94: =[1]网约车!E73-[1]网约车!E75 -> 0.046 | F94: =E94/#REF!-1 ->  | G94: =[1]网约车!G73-[1]网约车!G75 -> 0.064 | H94: =G94/#REF!-1 ->  | I94: =[1]网约车!I73-[1]网约车!I75 -> 0.064 | J94: =I94/#REF!-1 ->  | K94: =[1]网约车!K73-[1]网约车!K75 -> 0.078 | L94: =K94/#REF!-1 ->  | M94: =[1]网约车!M73-[1]网约车!M75 -> 0.094 | N94: =M94/#REF!-1 ->  | O94: 0.41 | P94: =O94/SUM(#REF!,#REF!,#REF!,#REF!,#REF!,#REF!)-1 -> 

Sheet Sheet2
A1: 中口径周转量
A2: 注：中口径旅客周转量由公路班线、城际城乡公交、城际城乡出租、城际城乡网约车旅客周转量四部分构成
A3: 地区 名称 | B3: 指标 | C3: 2026年1月 | D3: 1月同比 | E3: 2026年2月 | F3: 2月同比 | G3: 2026年3月 | H3: 3月同比 | I3: 2026年4月 | J3: 4月同比 | K3: 2026年5月 | L3: 5月同比 | M3: 2026年6月 | N3: 6月同比 | O3: 累计 | P3: 同比
A5: 全省 | B5: 总旅客周转量（万人公里） | C5: =C6+C7+C8+C9 -> 131496.28 | D5: =C5/#REF!-1 ->  | E5: =E6+E7+E8+E9 -> 148916.51 | F5: =E5/#REF!-1 ->  | G5: =G6+G7+G8+G9 -> 155961.27 | H5: =G5/#REF!-1 ->  | I5: =I6+I7+I8+I9 -> 162178.99 | J5: =I5/#REF!-1 ->  | K5: =K6+K7+K8+K9 -> 163957.39 | L5: =K5/#REF!-1 ->  | M5: =M6+M7+M8+M9 -> 154548.75 | N5: =M5/#REF!-1 ->  | O5: =E5+C5+G5+I5+K5+M5 -> 917059.20 | P5: =O5/SUM(#REF!,#REF!,#REF!,#REF!,#REF!,#REF!)-1 -> 
B6: 公路班线旅客周转量（万人公里） | C6: =C11+C16+C21+C26+C31+C36+C41+C46+C51+C56+C61+C66+C71+C76+C81+C86+C91 -> 91471.08 | D6: =C6/#REF!-1 ->  | E6: =E11+E16+E21+E26+E31+E36+E41+E46+E51+E56+E61+E66+E71+E76+E81+E86+E91 -> 110843.06 | F6: =E6/#REF!-1 ->  | G6: =G11+G16+G21+G26+G31+G36+G41+G46+G51+G56+G61+G66+G71+G76+G81+G86+G91 -> 115505.52 | H6: =G6/#REF!-1 ->  | I6: =I11+I16+I21+I26+I31+I36+I41+I46+I51+I56+I61+I66+I71+I76+I81+I86+I91 -> 121466.09 | J6: =I6/#REF!-1 ->  | K6: =K11+K16+K21+K26+K31+K36+K41+K46+K51+K56+K61+K66+K71+K76+K81+K86+K91 -> 121944.20 | L6: =K6/#REF!-1 ->  | M6: =M11+M16+M21+M26+M31+M36+M41+M46+M51+M56+M61+M66+M71+M76+M81+M86+M91 -> 112912.97 | N6: =M6/#REF!-1 ->  | O6: 674142.93 | P6: =O6/SUM(#REF!,#REF!,#REF!,#REF!,#REF!,#REF!)-1 -> 
B7: 城际城乡公交旅客周转量（万人公里） | C7: =C12+C17+C22+C27+C32+C37+C42+C47+C52+C57+C62+C67+C72+C77+C82+C87+C92 -> 28031.86 | D7: =C7/#REF!-1 ->  | E7: =E12+E17+E22+E27+E32+E37+E42+E47+E52+E57+E62+E67+E72+E77+E82+E87+E92 -> 26676.99 | F7: =E7/#REF!-1 ->  | G7: =G12+G17+G22+G27+G32+G37+G42+G47+G52+G57+G62+G67+G72+G77+G82+G87+G92 -> 28698.14 | H7: =G7/#REF!-1 ->  | I7: =I12+I17+I22+I27+I32+I37+I42+I47+I52+I57+I62+I67+I72+I77+I82+I87+I92 -> 29205.85 | J7: =I7/#REF!-1 ->  | K7: =K12+K17+K22+K27+K32+K37+K42+K47+K52+K57+K62+K67+K72+K77+K82+K87+K92 -> 29927.92 | L7: =K7/#REF!-1 ->  | M7: =M12+M17+M22+M27+M32+M37+M42+M47+M52+M57+M62+M67+M72+M77+M82+M87+M92 -> 29472.93 | N7: =M7/#REF!-1 ->  | O7: 172013.69 | P7: =O7/SUM(#REF!,#REF!,#REF!,#REF!,#REF!,#REF!)-1 -> 
B8: 城际城乡巡游出租旅客周转量（万人公里） | C8: =C13+C18+C23+C28+C33+C38+C43+C48+C53+C58+C63+C68+C73+C78+C83+C88+C93 -> 7393.31 | D8: =C8/#REF!-1 ->  | E8: =E13+E18+E23+E28+E33+E38+E43+E48+E53+E58+E63+E68+E73+E78+E83+E88+E93 -> 7424.72 | F8: =E8/#REF!-1 ->  | G8: =G13+G18+G23+G28+G33+G38+G43+G48+G53+G58+G63+G68+G73+G78+G83+G88+G93 -> 7017.04 | H8: =G8/#REF!-1 ->  | I8: =I13+I18+I23+I28+I33+I38+I43+I48+I53+I58+I63+I68+I73+I78+I83+I88+I93 -> 6880.66 | J8: =I8/#REF!-1 ->  | K8: =K13+K18+K23+K28+K33+K38+K43+K48+K53+K58+K63+K68+K73+K78+K83+K88+K93 -> 7052.96 | L8: =K8/#REF!-1 ->  | M8: =M13+M18+M23+M28+M33+M38+M43+M48+M53+M58+M63+M68+M73+M78+M83+M88+M93 -> 6971.69 | N8: =M8/#REF!-1 ->  | O8: 42740.38 | P8: =O8/SUM(#REF!,#REF!,#REF!,#REF!,#REF!,#REF!)-1 -> 
B9: 城际城乡网约车旅客周转量(万人公里) | C9: =C14+C19+C24+C29+C34+C39+C44+C49+C54+C59+C64+C69+C74+C79+C84+C89+C94 -> 4600.03 | D9: =C9/#REF!-1 ->  | E9: =E14+E19+E24+E29+E34+E39+E44+E49+E54+E59+E64+E69+E74+E79+E84+E89+E94 -> 3971.74 | F9: =E9/#REF!-1 ->  | G9: =G14+G19+G24+G29+G34+G39+G44+G49+G54+G59+G64+G69+G74+G79+G84+G89+G94 -> 4740.57 | H9: =G9/#REF!-1 ->  | I9: =I14+I19+I24+I29+I34+I39+I44+I49+I54+I59+I64+I69+I74+I79+I84+I89+I94 -> 4626.39 | J9: =I9/#REF!-1 ->  | K9: =K14+K19+K24+K29+K34+K39+K44+K49+K54+K59+K64+K69+K74+K79+K84+K89+K94 -> 5032.31 | L9: =K9/#REF!-1 ->  | M9: =M14+M19+M24+M29+M34+M39+M44+M49+M54+M59+M64+M69+M74+M79+M84+M89+M94 -> 5191.16 | N9: =M9/#REF!-1 ->  | O9: 28162.20 | P9: =O9/SUM(#REF!,#REF!,#REF!,#REF!,#REF!,#REF!)-1 -> 
A10: 武汉市 | B10: 总旅客周转量（万人公里） | C10: =C11+C12+C13+C14 -> 16223.32 | D10: =C10/#REF!-1 ->  | E10: =E11+E12+E13+E14 -> 14192.47 | F10: =E10/#REF!-1 ->  | G10: =G11+G12+G13+G14 -> 19555.15 | H10: =G10/#REF!-1 ->  | I10: =I11+I12+I13+I14 -> 22085.24 | J10: =I10/#REF!-1 ->  | K10: =K11+K12+K13+K14 -> 21521.85 | L10: =K10/#REF!-1 ->  | M10: =M11+M12+M13+M14 -> 19895.28 | N10: =M10/#REF!-1 ->  | O10: 113473.31 | P10: =O10/SUM(#REF!,#REF!,#REF!,#REF!,#REF!,#REF!)-1 -> 
B11: 公路班线旅客周转量（万人公里） | C11: =[1]班线包车!C9 -> 15634.2955 | D11: =C11/#REF!-1 ->  | E11: =[1]班线包车!E9 -> 13762.8961 | F11: =E11/#REF!-1 ->  | G11: =[1]班线包车!G9 -> 18904.2637 | H11: =G11/#REF!-1 ->  | I11: =[1]班线包车!I9 -> 21448.6084 | J11: =I11/#REF!-1 ->  | K11: =[1]班线包车!K9 -> 20903.5122 | L11: =K11/#REF!-1 ->  | M11: =[1]班线包车!M9 -> 19301.074 | N11: =M11/#REF!-1 ->  | O11: 109954.65 | P11: =O11/SUM(#REF!,#REF!,#REF!,#REF!,#REF!,#REF!)-1 -> 
B12: 城际城乡公交旅客周转量（万人公里） | C12: =[1]公交!C10-[1]公交!C12 -> 589.02 | D12: =C12/#REF!-1 ->  | E12: =[1]公交!E10-[1]公交!E12 -> 429.57 | F12: =E12/#REF!-1 ->  | G12: =[1]公交!G10-[1]公交!G12 -> 650.89 | H12: =G12/#REF!-1 ->  | I12: =[1]公交!I10-[1]公交!I12 -> 636.63 | J12: =I12/#REF!-1 ->  | K12: =[1]公交!K10-[1]公交!K12 -> 618.34 | L12: =K12/#REF!-1 ->  | M12: =[1]公交!M10-[1]公交!M12 -> 594.21 | N12: =M12/#REF!-1 ->  | O12: 3518.66 | P12: =O12/SUM(#REF!,#REF!,#REF!,#REF!,#REF!,#REF!)-1 -> 
B13: 城际城乡巡游出租旅客周转量（万人公里） | C13: 0 | D13: =C13/#REF!-1 ->  | E13: 0 | F13: =E13/#REF!-1 ->  | G13: 0 | H13: =G13/#REF!-1 ->  | I13: 0 | J13: =I13/#REF!-1 ->  | K13: 0 | L13: =K13/#REF!-1 ->  | M13: 0 | N13: =M13/#REF!-1 ->  | O13: 0.00 | P13: =O13/SUM(#REF!,#REF!,#REF!,#REF!,#REF!,#REF!)-1 -> 
B14: 城际城乡网约车旅客周转量(万人公里) | C14: 0.00 | D14: =C14/#REF!-1 ->  | E14: 0.00 | F14: =E14/#REF!-1 ->  | G14: 0.00 | H14: =G14/#REF!-1 ->  | I14: 0.00 | J14: =I14/#REF!-1 ->  | K14: 0.00 | L14: =K14/#REF!-1 ->  | M14: 0.00 | N14: =M14/#REF!-1 ->  | O14: 0.00 | P14: =O14/SUM(#REF!,#REF!,#REF!,#REF!,#REF!,#REF!)-1 -> 
A15: 黄石市 | B15: 总旅客周转量（万人公里） | C15: =C16+C17+C18+C19 -> 5389.62 | D15: =C15/#REF!-1 ->  | E15: =E16+E17+E18+E19 -> 5188.81 | F15: =E15/#REF!-1 ->  | G15: =G16+G17+G18+G19 -> 5951.31 | H15: =G15/#REF!-1 ->  | I15: =I16+I17+I18+I19 -> 6254.11 | J15: =I15/#REF!-1 ->  | K15: =K16+K17+K18+K19 -> 6038.01 | L15: =K15/#REF!-1 ->  | M15: =M16+M17+M18+M19 -> 5835.41 | N15: =M15/#REF!-1 ->  | O15: 34657.26 | P15: =O15/SUM(#REF!,#REF!,#REF!,#REF!,#REF!,#REF!)-1 -> 
B16: 公路班线旅客周转量（万人公里） | C16: =[1]班线包车!C11 -> 2072.6875 | D16: =C16/#REF!-1 ->  | E16: =[1]班线包车!E11 -> 2381.0712 | F16: =E16/#REF!-1 ->  | G16: =[1]班线包车!G11 -> 2528.9262 | H16: =G16/#REF!-1 ->  | I16: =[1]班线包车!I11 -> 2913.672 | J16: =I16/#REF!-1 ->  | K16: =[1]班线包车!K11 -> 2547.6156 | L16: =K16/#REF!-1 ->  | M16: =[1]班线包车!M11 -> 2470.4711 | N16: =M16/#REF!-1 ->  | O16: 14914.44 | P16: =O16/SUM(#REF!,#REF!,#REF!,#REF!,#REF!,#REF!)-1 -> 
B17: 城际城乡公交旅客周转量（万人公里） | C17: =[1]公交!C14-[1]公交!C16 -> 2885.57 | D17: =C17/#REF!-1 ->  | E17: =[1]公交!E14-[1]公交!E16 -> 2395.99 | F17: =E17/#REF!-1 ->  | G17: =[1]公交!G14-[1]公交!G16 -> 3003.02 | H17: =G17/#REF!-1 ->  | I17: =[1]公交!I14-[1]公交!I16 -> 2930.14 | J17: =I17/#REF!-1 ->  | K17: =[1]公交!K14-[1]公交!K16 -> 3055.22 | L17: =K17/#REF!-1 ->  | M17: =[1]公交!M14-[1]公交!M16 -> 2909.13 | N17: =M17/#REF!-1 ->  | O17: 17179.07 | P17: =O17/SUM(#REF!,#REF!,#REF!,#REF!,#REF!,#REF!)-1 -> 
B18: 城际城乡巡游出租旅客周转量（万人公里） | C18: =[1]出租!C14-[1]出租!C16 -> 266.42 | D18: =C18/#REF!-1 ->  | E18: =[1]出租!E14-[1]出租!E16 -> 268.18 | F18: =E18/#REF!-1 ->  | G18: =[1]出租!G14-[1]出租!G16 -> 258.11 | H18: =G18/#REF!-1 ->  | I18: =[1]出租!I14-[1]出租!I16 -> 263.17 | J18: =I18/#REF!-1 ->  | K18: =[1]出租!K14-[1]出租!K16 -> 260.13 | L18: =K18/#REF!-1 ->  | M18: =[1]出租!M14-[1]出租!M16 -> 251.24 | N18: =M18/#REF!-1 ->  | O18: 1567.25 | P18: =O18/SUM(#REF!,#REF!,#REF!,#REF!,#REF!,#REF!)-1 -> 
B19: 城际城乡网约车旅客周转量(万人公里) | C19: =[1]网约车!C14-[1]网约车!C16 -> 164.95 | D19: =C19/#REF!-1 ->  | E19: =[1]网约车!E14-[1]网约车!E16 -> 143.57 | F19: =E19/#REF!-1 ->  | G19: =[1]网约车!G14-[1]网约车!G16 -> 161.25 | H19: =G19/#REF!-1 ->  | I19: =[1]网约车!I14-[1]网约车!I16 -> 147.12 | J19: =I19/#REF!-1 ->  | K19: =[1]网约车!K14-[1]网约车!K16 -> 175.04 | L19: =K19/#REF!-1 ->  | M19: =[1]网约车!M14-[1]网约车!M16 -> 204.57 | N19: =M19/#REF!-1 ->  | O19: 996.50 | P19: =O19/SUM(#REF!,#REF!,#REF!,#REF!,#REF!,#REF!)-1 -> 
A20: 十堰市 | B20: 总旅客周转量（万人公里） | C20: =C21+C22+C23+C24 -> 7165.69 | D20: =C20/#REF!-1 ->  | E20: =E21+E22+E23+E24 -> 8786.98 | F20: =E20/#REF!-1 ->  | G20: =G21+G22+G23+G24 -> 8458.56 | H20: =G20/#REF!-1 ->  | I20: =I21+I22+I23+I24 -> 9244.21 | J20: =I20/#REF!-1 ->  | K20: =K21+K22+K23+K24 -> 9118.89 | L20: =K20/#REF!-1 ->  | M20: =M21+M22+M23+M24 -> 8457.43 | N20: =M20/#REF!-1 ->  | O20: 51231.75 | P20: =O20/SUM(#REF!,#REF!,#REF!,#REF!,#REF!,#REF!)-1 -> 
B21: 公路班线旅客周转量（万人公里） | C21: =[1]班线包车!C15 -> 4442.6528 | D21: =C21/#REF!-1 ->  | E21: =[1]班线包车!E15 -> 6222.1126 | F21: =E21/#REF!-1 ->  | G21: =[1]班线包车!G15 -> 5800.6944 | H21: =G21/#REF!-1 ->  | I21: =[1]班线包车!I15 -> 6318.1348 | J21: =I21/#REF!-1 ->  | K21: =[1]班线包车!K15 -> 6328.6093 | L21: =K21/#REF!-1 ->  | M21: =[1]班线包车!M15 -> 5538.8125 | N21: =M21/#REF!-1 ->  | O21: 34651.02 | P21: =O21/SUM(#REF!,#REF!,#REF!,#REF!,#REF!,#REF!)-1 -> 
B22: 城际城乡公交旅客周转量（万人公里） | C22: =[1]公交!C18-[1]公交!C20 -> 2382.46 | D22: =C22/#REF!-1 ->  | E22: =[1]公交!E18-[1]公交!E20 -> 2303.04 | F22: =E22/#REF!-1 ->  | G22: =[1]公交!G18-[1]公交!G20 -> 2284.65 | H22: =G22/#REF!-1 ->  | I22: =[1]公交!I18-[1]公交!I20 -> 2590.88 | J22: =I22/#REF!-1 ->  | K22: =[1]公交!K18-[1]公交!K20 -> 2426.63 | L22: =K22/#REF!-1 ->  | M22: =[1]公交!M18-[1]公交!M20 -> 2539.21 | N22: =M22/#REF!-1 ->  | O22: 14526.87 | P22: =O22/SUM(#REF!,#REF!,#REF!,#REF!,#REF!,#REF!)-1 -> 
B23: 城际城乡巡游出租旅客周转量（万人公里） | C23: =[1]出租!C18-[1]出租!C20 -> 83.79 | D23: =C23/#REF!-1 ->  | E23: =[1]出租!E18-[1]出租!E20 -> 46.85 | F23: =E23/#REF!-1 ->  | G23: =[1]出租!G18-[1]出租!G20 -> 51.28 | H23: =G23/#REF!-1 ->  | I23: =[1]出租!I18-[1]出租!I20 -> 52.48 | J23: =I23/#REF!-1 ->  | K23: =[1]出租!K18-[1]出租!K20 -> 56.02 | L23: =K23/#REF!-1 ->  | M23: =[1]出租!M18-[1]出租!M20 -> 50.5 | N23: =M23/#REF!-1 ->  | O23: 340.92 | P23: =O23/SUM(#REF!,#REF!,#REF!,#REF!,#REF!,#REF!)-1 -> 
B24: 城际城乡网约车旅客周转量(万人公里) | C24: =[1]网约车!C18-[1]网约车!C20 -> 256.79 | D24: =C24/#REF!-1 ->  | E24: =[1]网约车!E18-[1]网约车!E20 -> 214.98 | F24: =E24/#REF!-1 ->  | G24: =[1]网约车!G18-[1]网约车!G20 -> 321.94 | H24: =G24/#REF!-1 ->  | I24: =[1]网约车!I18-[1]网约车!I20 -> 282.71 | J24: =I24/#REF!-1 ->  | K24: =[1]网约车!K18-[1]网约车!K20 -> 307.63 | L24: =K24/#REF!-1 ->  | M24: =[1]网约车!M18-[1]网约车!M20 -> 328.90 | N24: =M24/#REF!-1 ->  | O24: 1712.95 | P24: =O24/SUM(#REF!,#REF!,#REF!,#REF!,#REF!,#REF!)-1 -> 
A25: 宜昌市 | B25: 总旅客周转量（万人公里） | C25: =C26+C27+C28+C29 -> 13411.32 | D25: =C25/#REF!-1 ->  | E25: =E26+E27+E28+E29 -> 15665.68 | F25: =E25/#REF!-1 ->  | G25: =G26+G27+G28+G29 -> 16808.19 | H25: =G25/#REF!-1 ->  | I25: =I26+I27+I28+I29 -> 19190.16 | J25: =I25/#REF!-1 ->  | K25: =K26+K27+K28+K29 -> 21559.76 | L25: =K25/#REF!-1 ->  | M25: =M26+M27+M28+M29 -> 20987.14 | N25: =M25/#REF!-1 ->  | O25: 107622.25 | P25: =O25/SUM(#REF!,#REF!,#REF!,#REF!,#REF!,#REF!)-1 -> 
B26: 公路班线旅客周转量（万人公里） | C26: =[1]班线包车!C19 -> 12032.7491 | D26: =C26/#REF!-1 ->  | E26: =[1]班线包车!E19 -> 14351.0886 | F26: =E26/#REF!-1 ->  | G26: =[1]班线包车!G19 -> 14986.0133 | H26: =G26/#REF!-1 ->  | I26: =[1]班线包车!I19 -> 17342.3056 | J26: =I26/#REF!-1 ->  | K26: =[1]班线包车!K19 -> 19384.3163 | L26: =K26/#REF!-1 ->  | M26: =[1]班线包车!M19 -> 18766.1584 | N26: =M26/#REF!-1 ->  | O26: 96862.63 | P26: =O26/SUM(#REF!,#REF!,#REF!,#REF!,#REF!,#REF!)-1 -> 
B27: 城际城乡公交旅客周转量（万人公里） | C27: =[1]公交!C22-[1]公交!C24 -> 809.65 | D27: =C27/#REF!-1 ->  | E27: =[1]公交!E22-[1]公交!E24 -> 756.56 | F27: =E27/#REF!-1 ->  | G27: =[1]公交!G22-[1]公交!G24 -> 824.7 | H27: =G27/#REF!-1 ->  | I27: =[1]公交!I22-[1]公交!I24 -> 807.02 | J27: =I27/#REF!-1 ->  | K27: =[1]公交!K22-[1]公交!K24 -> 1070.19 | L27: =K27/#REF!-1 ->  | M27: =[1]公交!M22-[1]公交!M24 -> 1107 | N27: =M27/#REF!-1 ->  | O27: 5375.12 | P27: =O27/SUM(#REF!,#REF!,#REF!,#REF!,#REF!,#REF!)-1 -> 
B28: 城际城乡巡游出租旅客周转量（万人公里） | C28: =[1]出租!C22-[1]出租!C24 -> 280.25 | D28: =C28/#REF!-1 ->  | E28: =[1]出租!E22-[1]出租!E24 -> 299.88 | F28: =E28/#REF!-1 ->  | G28: =[1]出租!G22-[1]出租!G24 -> 523.25 | H28: =G28/#REF!-1 ->  | I28: =[1]出租!I22-[1]出租!I24 -> 539.55 | J28: =I28/#REF!-1 ->  | K28: =[1]出租!K22-[1]出租!K24 -> 559.71 | L28: =K28/#REF!-1 ->  | M28: =[1]出租!M22-[1]出租!M24 -> 545.89 | N28: =M28/#REF!-1 ->  | O28: 2748.53 | P28: =O28/SUM(#REF!,#REF!,#REF!,#REF!,#REF!,#REF!)-1 -> 
B29: 城际城乡网约车旅客周转量(万人公里) | C29: =[1]网约车!C22-[1]网约车!C24 -> 288.67 | D29: =C29/#REF!-1 ->  | E29: =[1]网约车!E22-[1]网约车!E24 -> 258.15 | F29: =E29/#REF!-1 ->  | G29: =[1]网约车!G22-[1]网约车!G24 -> 474.23 | H29: =G29/#REF!-1 ->  | I29: =[1]网约车!I22-[1]网约车!I24 -> 501.29 | J29: =I29/#REF!-1 ->  | K29: =[1]网约车!K22-[1]网约车!K24 -> 545.54 | L29: =K29/#REF!-1 ->  | M29: =[1]网约车!M22-[1]网约车!M24 -> 568.09 | N29: =M29/#REF!-1 ->  | O29: 2635.97 | P29: =O29/SUM(#REF!,#REF!,#REF!,#REF!,#REF!,#REF!)-1 -> 
A30: 襄阳市 | B30: 总旅客周转量（万人公里） | C30: =C31+C32+C33+C34 -> 14517.29 | D30: =C30/#REF!-1 ->  | E30: =E31+E32+E33+E34 -> 21087.14 | F30: =E30/#REF!-1 ->  | G30: =G31+G32+G33+G34 -> 20325.04 | H30: =G30/#REF!-1 ->  | I30: =I31+I32+I33+I34 -> 18718.68 | J30: =I30/#REF!-1 ->  | K30: =K31+K32+K33+K34 -> 18574.97 | L30: =K30/#REF!-1 ->  | M30: =M31+M32+M33+M34 -> 16278.97 | N30: =M30/#REF!-1 ->  | O30: 109502.09 | P30: =O30/SUM(#REF!,#REF!,#REF!,#REF!,#REF!,#REF!)-1 -> 
B31: 公路班线旅客周转量（万人公里） | C31: =[1]班线包车!C23 -> 10120.8517 | D31: =C31/#REF!-1 ->  | E31: =[1]班线包车!E23 -> 16615.7551 | F31: =E31/#REF!-1 ->  | G31: =[1]班线包车!G23 -> 15869.8464 | H31: =G31/#REF!-1 ->  | I31: =[1]班线包车!I23 -> 14345.6508 | J31: =I31/#REF!-1 ->  | K31: =[1]班线包车!K23 -> 14014.5296 | L31: =K31/#REF!-1 ->  | M31: =[1]班线包车!M23 -> 11627.7753 | N31: =M31/#REF!-1 ->  | O31: 82594.41 | P31: =O31/SUM(#REF!,#REF!,#REF!,#REF!,#REF!,#REF!)-1 -> 
B32: 城际城乡公交旅客周转量（万人公里） | C32: =[1]公交!C26-[1]公交!C28 -> 3119.4 | D32: =C32/#REF!-1 ->  | E32: =[1]公交!E26-[1]公交!E28 -> 3309.51 | F32: =E32/#REF!-1 ->  | G32: =[1]公交!G26-[1]公交!G28 -> 3202.68 | H32: =G32/#REF!-1 ->  | I32: =[1]公交!I26-[1]公交!I28 -> 3199.15 | J32: =I32/#REF!-1 ->  | K32: =[1]公交!K26-[1]公交!K28 -> 3343.28 | L32: =K32/#REF!-1 ->  | M32: =[1]公交!M26-[1]公交!M28 -> 3431.54 | N32: =M32/#REF!-1 ->  | O32: 19605.56 | P32: =O32/SUM(#REF!,#REF!,#REF!,#REF!,#REF!,#REF!)-1 -> 
B33: 城际城乡巡游出租旅客周转量（万人公里） | C33: =[1]出租!C26-[1]出租!C28 -> 518.64 | D33: =C33/#REF!-1 ->  | E33: =[1]出租!E26-[1]出租!E28 -> 513.91 | F33: =E33/#REF!-1 ->  | G33: =[1]出租!G26-[1]出租!G28 -> 540.95 | H33: =G33/#REF!-1 ->  | I33: =[1]出租!I26-[1]出租!I28 -> 511.37 | J33: =I33/#REF!-1 ->  | K33: =[1]出租!K26-[1]出租!K28 -> 512.23 | L33: =K33/#REF!-1 ->  | M33: =[1]出租!M26-[1]出租!M28 -> 519.8 | N33: =M33/#REF!-1 ->  | O33: 3116.90 | P33: =O33/SUM(#REF!,#REF!,#REF!,#REF!,#REF!,#REF!)-1 -> 
B34: 城际城乡网约车旅客周转量(万人公里) | C34: =[1]网约车!C26-[1]网约车!C28 -> 758.40 | D34: =C34/#REF!-1 ->  | E34: =[1]网约车!E26-[1]网约车!E28 -> 647.97 | F34: =E34/#REF!-1 ->  | G34: =[1]网约车!G26-[1]网约车!G28 -> 711.57 | H34: =G34/#REF!-1 ->  | I34: =[1]网约车!I26-[1]网约车!I28 -> 662.51 | J34: =I34/#REF!-1 ->  | K34: =[1]网约车!K26-[1]网约车!K28 -> 704.93 | L34: =K34/#REF!-1 ->  | M34: =[1]网约车!M26-[1]网约车!M28 -> 699.86 | N34: =M34/#REF!-1 ->  | O34: 4185.22 | P34: =O34/SUM(#REF!,#REF!,#REF!,#REF!,#REF!,#REF!)-1 -> 
A35: 鄂州市 | B35: 总旅客周转量（万人公里） | C35: =C36+C37+C38+C39 -> 2964.86 | D35: =C35/#REF!-1 ->  | E35: =E36+E37+E38+E39 -> 2605.94 | F35: =E35/#REF!-1 ->  | G35: =G36+G37+G38+G39 -> 2635.90 | H35: =G35/#REF!-1 ->  | I35: =I36+I37+I38+I39 -> 2666.76 | J35: =I35/#REF!-1 ->  | K35: =K36+K37+K38+K39 -> 2580.27 | L35: =K35/#REF!-1 ->  | M35: =M36+M37+M38+M39 -> 2497.36 | N35: =M35/#REF!-1 ->  | O35: 15951.09 | P35: =O35/SUM(#REF!,#REF!,#REF!,#REF!,#REF!,#REF!)-1 -> 
B36: 公路班线旅客周转量（万人公里） | C36: =[1]班线包车!C27 -> 2574.3453 | D36: =C36/#REF!-1 ->  | E36: =[1]班线包车!E27 -> 2270.4778 | F36: =E36/#REF!-1 ->  | G36: =[1]班线包车!G27 -> 2312.8897 | H36: =G36/#REF!-1 ->  | I36: =[1]班线包车!I27 -> 2341.8271 | J36: =I36/#REF!-1 ->  | K36: =[1]班线包车!K27 -> 2329.9036 | L36: =K36/#REF!-1 ->  | M36: =[1]班线包车!M27 -> 2252.8378 | N36: =M36/#REF!-1 ->  | O36: 14082.28 | P36: =O36/SUM(#REF!,#REF!,#REF!,#REF!,#REF!,#REF!)-1 -> 
B37: 城际城乡公交旅客周转量（万人公里） | C37: =[1]公交!C30-[1]公交!C32 -> 199.39 | D37: =C37/#REF!-1 ->  | E37: =[1]公交!E30-[1]公交!E32 -> 201.09 | F37: =E37/#REF!-1 ->  | G37: =[1]公交!G30-[1]公交!G32 -> 203.62 | H37: =G37/#REF!-1 ->  | I37: =[1]公交!I30-[1]公交!I32 -> 211.85 | J37: =I37/#REF!-1 ->  | K37: =[1]公交!K30-[1]公交!K32 -> 142.04 | L37: =K37/#REF!-1 ->  | M37: =[1]公交!M30-[1]公交!M32 -> 136.32 | N37: =M37/#REF!-1 ->  | O37: =E37+C37+G37+I37+K37+M37 -> 1094.31 | P37: =O37/SUM(#REF!,#REF!,#REF!,#REF!,#REF!,#REF!)-1 -> 
B38: 城际城乡巡游出租旅客周转量（万人公里） | C38: =[1]出租!C30-[1]出租!C32 -> 103.08 | D38: =C38/#REF!-1 ->  | E38: =[1]出租!E30-[1]出租!E32 -> 64.34 | F38: =E38/#REF!-1 ->  | G38: =[1]出租!G30-[1]出租!G32 -> 40.55 | H38: =G38/#REF!-1 ->  | I38: =[1]出租!I30-[1]出租!I32 -> 37.87 | J38: =I38/#REF!-1 ->  | K38: =[1]出租!K30-[1]出租!K32 -> 33.4 | L38: =K38/#REF!-1 ->  | M38: =[1]出租!M30-[1]出租!M32 -> 32.19 | N38: =M38/#REF!-1 ->  | O38: 311.43 | P38: =O38/SUM(#REF!,#REF!,#REF!,#REF!,#REF!,#REF!)-1 -> 
B39: 城际城乡网约车旅客周转量(万人公里) | C39: =[1]网约车!C30-[1]网约车!C32 -> 88.05 | D39: =C39/#REF!-1 ->  | E39: =[1]网约车!E30-[1]网约车!E32 -> 70.03 | F39: =E39/#REF!-1 ->  | G39: =[1]网约车!G30-[1]网约车!G32 -> 78.84 | H39: =G39/#REF!-1 ->  | I39: =[1]网约车!I30-[1]网约车!I32 -> 75.22 | J39: =I39/#REF!-1 ->  | K39: =[1]网约车!K30-[1]网约车!K32 -> 74.92 | L39: =K39/#REF!-1 ->  | M39: =[1]网约车!M30-[1]网约车!M32 -> 76.01 | N39: =M39/#REF!-1 ->  | O39: 463.06 | P39: =O39/SUM(#REF!,#REF!,#REF!,#REF!,#REF!,#REF!)-1 -> 
A40: 荆门市 | B40: 总旅客周转量（万人公里） | C40: =C41+C42+C43+C44 -> 3471.49 | D40: =C40/#REF!-1 ->  | E40: =E41+E42+E43+E44 -> 3905.09 | F40: =E40/#REF!-1 ->  | G40: =G41+G42+G43+G44 -> 3939.39 | H40: =G40/#REF!-1 ->  | I40: =I41+I42+I43+I44 -> 3991.33 | J40: =I40/#REF!-1 ->  | K40: =K41+K42+K43+K44 -> 4041.78 | L40: =K40/#REF!-1 ->  | M40: =M41+M42+M43+M44 -> 3548.20 | N40: =M40/#REF!-1 ->  | O40: 22897.28 | P40: =O40/SUM(#REF!,#REF!,#REF!,#REF!,#REF!,#REF!)-1 -> 
B41: 公路班线旅客周转量（万人公里） | C41: =[1]班线包车!C29 -> 2914.7385 | D41: =C41/#REF!-1 ->  | E41: =[1]班线包车!E29 -> 3370.793718 | F41: =E41/#REF!-1 ->  | G41: =[1]班线包车!G29 -> 3406.832473 | H41: =G41/#REF!-1 ->  | I41: =[1]班线包车!I29 -> 3476.813709 | J41: =I41/#REF!-1 ->  | K41: =[1]班线包车!K29 -> 3514.446795 | L41: =K41/#REF!-1 ->  | M41: =[1]班线包车!M29 -> 3038.760275 | N41: =M41/#REF!-1 ->  | O41: 19722.39 | P41: =O41/SUM(#REF!,#REF!,#REF!,#REF!,#REF!,#REF!)-1 -> 
B42: 城际城乡公交旅客周转量（万人公里） | C42: =[1]公交!C34-[1]公交!C36 -> 83.28 | D42: =C42/#REF!-1 ->  | E42: =[1]公交!E34-[1]公交!E36 -> 81.84 | F42: =E42/#REF!-1 ->  | G42: =[1]公交!G34-[1]公交!G36 -> 82.28 | H42: =G42/#REF!-1 ->  | I42: =[1]公交!I34-[1]公交!I36 -> 81.3 | J42: =I42/#REF!-1 ->  | K42: =[1]公交!K34-[1]公交!K36 -> 78.69 | L42: =K42/#REF!-1 ->  | M42: =[1]公交!M34-[1]公交!M36 -> 78.56 | N42: =M42/#REF!-1 ->  | O42: 485.95 | P42: =O42/SUM(#REF!,#REF!,#REF!,#REF!,#REF!,#REF!)-1 -> 
B43: 城际城乡巡游出租旅客周转量（万人公里） | C43: =[1]出租!C34-[1]出租!C36 -> 271.46 | D43: =C43/#REF!-1 ->  | E43: =[1]出租!E34-[1]出租!E36 -> 287.09 | F43: =E43/#REF!-1 ->  | G43: =[1]出租!G34-[1]出租!G36 -> 269.54 | H43: =G43/#REF!-1 ->  | I43: =[1]出租!I34-[1]出租!I36 -> 253.35 | J43: =I43/#REF!-1 ->  | K43: =[1]出租!K34-[1]出租!K36 -> 263.01 | L43: =K43/#REF!-1 ->  | M43: =[1]出租!M34-[1]出租!M36 -> 242.95 | N43: =M43/#REF!-1 ->  | O43: 1587.40 | P43: =O43/SUM(#REF!,#REF!,#REF!,#REF!,#REF!,#REF!)-1 -> 
B44: 城际城乡网约车旅客周转量(万人公里) | C44: =[1]网约车!C34-[1]网约车!C36 -> 202.01 | D44: =C44/#REF!-1 ->  | E44: =[1]网约车!E34-[1]网约车!E36 -> 165.37 | F44: =E44/#REF!-1 ->  | G44: =[1]网约车!G34-[1]网约车!G36 -> 180.74 | H44: =G44/#REF!-1 ->  | I44: =[1]网约车!I34-[1]网约车!I36 -> 179.87 | J44: =I44/#REF!-1 ->  | K44: =[1]网约车!K34-[1]网约车!K36 -> 185.63 | L44: =K44/#REF!-1 ->  | M44: =[1]网约车!M34-[1]网约车!M36 -> 187.93 | N44: =M44/#REF!-1 ->  | O44: 1101.54 | P44: =O44/SUM(#REF!,#REF!,#REF!,#REF!,#REF!,#REF!)-1 -> 
A45: 孝感市 | B45: 总旅客周转量（万人公里） | C45: =C46+C47+C48+C49 -> 7249.60 | D45: =C45/#REF!-1 ->  | E45: =E46+E47+E48+E49 -> 7308.99 | F45: =E45/#REF!-1 ->  | G45: =G46+G47+G48+G49 -> 7667.83 | H45: =G45/#REF!-1 ->  | I45: =I46+I47+I48+I49 -> 8179.84 | J45: =I45/#REF!-1 ->  | K45: =K46+K47+K48+K49 -> 8473.86 | L45: =K45/#REF!-1 ->  | M45: =M46+M47+M48+M49 -> 9044.95 | N45: =M45/#REF!-1 ->  | O45: 47925.07 | P45: =O45/SUM(#REF!,#REF!,#REF!,#REF!,#REF!,#REF!)-1 -> 
B46: 公路班线旅客周转量（万人公里） | C46: =[1]班线包车!C33 -> 2820.2439 | D46: =C46/#REF!-1 ->  | E46: =[1]班线包车!E33 -> 2880.7429 | F46: =E46/#REF!-1 ->  | G46: =[1]班线包车!G33 -> 3223.1066 | H46: =G46/#REF!-1 ->  | I46: =[1]班线包车!I33 -> 3740.0259 | J46: =I46/#REF!-1 ->  | K46: =[1]班线包车!K33 -> 3834.7599 | L46: =K46/#REF!-1 ->  | M46: =[1]班线包车!M33 -> 4215.6505 | N46: =M46/#REF!-1 ->  | O46: 20714.53 | P46: =O46/SUM(#REF!,#REF!,#REF!,#REF!,#REF!,#REF!)-1 -> 
B47: 城际城乡公交旅客周转量（万人公里） | C47: =[1]公交!C38-[1]公交!C40 -> 2885.33 | D47: =C47/#REF!-1 ->  | E47: =[1]公交!E38-[1]公交!E40 -> 2972.9 | F47: =E47/#REF!-1 ->  | G47: =[1]公交!G38-[1]公交!G40 -> 2951.58 | H47: =G47/#REF!-1 ->  | I47: =[1]公交!I38-[1]公交!I40 -> 2954.95 | J47: =I47/#REF!-1 ->  | K47: =[1]公交!K38-[1]公交!K40 -> 3065.71 | L47: =K47/#REF!-1 ->  | M47: =[1]公交!M38-[1]公交!M40 -> 3184.74 | N47: =M47/#REF!-1 ->  | O47: 18015.21 | P47: =O47/SUM(#REF!,#REF!,#REF!,#REF!,#REF!,#REF!)-1 -> 
B48: 城际城乡巡游出租旅客周转量（万人公里） | C48: =[1]出租!C38-[1]出租!C40 -> 1121.76 | D48: =C48/#REF!-1 ->  | E48: =[1]出租!E38-[1]出租!E40 -> 1124.15 | F48: =E48/#REF!-1 ->  | G48: =[1]出租!G38-[1]出租!G40 -> 1060.44 | H48: =G48/#REF!-1 ->  | I48: =[1]出租!I38-[1]出租!I40 -> 1044.19 | J48: =I48/#REF!-1 ->  | K48: =[1]出租!K38-[1]出租!K40 -> 1088.57 | L48: =K48/#REF!-1 ->  | M48: =[1]出租!M38-[1]出租!M40 -> 1162.59 | N48: =M48/#REF!-1 ->  | O48: 6601.70 | P48: =O48/SUM(#REF!,#REF!,#REF!,#REF!,#REF!,#REF!)-1 -> 
B49: 城际城乡网约车旅客周转量(万人公里) | C49: =[1]网约车!C38-[1]网约车!C40 -> 422.27 | D49: =C49/#REF!-1 ->  | E49: =[1]网约车!E38-[1]网约车!E40 -> 331.19 | F49: =E49/#REF!-1 ->  | G49: =[1]网约车!G38-[1]网约车!G40 -> 432.71 | H49: =G49/#REF!-1 ->  | I49: =[1]网约车!I38-[1]网约车!I40 -> 440.67 | J49: =I49/#REF!-1 ->  | K49: =[1]网约车!K38-[1]网约车!K40 -> 484.82 | L49: =K49/#REF!-1 ->  | M49: =[1]网约车!M38-[1]网约车!M40 -> 481.97 | N49: =M49/#REF!-1 ->  | O49: 2593.63 | P49: =O49/SUM(#REF!,#REF!,#REF!,#REF!,#REF!,#REF!)-1 -> 
A50: 荆州市 | B50: 总旅客周转量（万人公里） | C50: =C51+C52+C53+C54 -> 10455.18 | D50: =C50/#REF!-1 ->  | E50: =E51+E52+E53+E54 -> 12949.37 | F50: =E50/#REF!-1 ->  | G50: =G51+G52+G53+G54 -> 12684.05 | H50: =G50/#REF!-1 ->  | I50: =I51+I52+I53+I54 -> 10792.53 | J50: =I50/#REF!-1 ->  | K50: =K51+K52+K53+K54 -> 11546.37 | L50: =K50/#REF!-1 ->  | M50: =M51+M52+M53+M54 -> 10883.41 | N50: =M50/#REF!-1 ->  | O50: 69310.90 | P50: =O50/SUM(#REF!,#REF!,#REF!,#REF!,#REF!,#REF!)-1 -> 
B51: 公路班线旅客周转量（万人公里） | C51: =[1]班线包车!C37 -> 8460.3268 | D51: =C51/#REF!-1 ->  | E51: =[1]班线包车!E37 -> 10893.6835 | F51: =E51/#REF!-1 ->  | G51: =[1]班线包车!G37 -> 10915.655 | H51: =G51/#REF!-1 ->  | I51: =[1]班线包车!I37 -> 9181.1169 | J51: =I51/#REF!-1 ->  | K51: =[1]班线包车!K37 -> 9903.441 | L51: =K51/#REF!-1 ->  | M51: =[1]班线包车!M37 -> 9184.0432 | N51: =M51/#REF!-1 ->  | O51: 58538.27 | P51: =O51/SUM(#REF!,#REF!,#REF!,#REF!,#REF!,#REF!)-1 -> 
B52: 城际城乡公交旅客周转量（万人公里） | C52: =[1]公交!C42-[1]公交!C44 -> 101.48 | D52: =C52/#REF!-1 ->  | E52: =[1]公交!E42-[1]公交!E44 -> 102.02 | F52: =E52/#REF!-1 ->  | G52: =[1]公交!G42-[1]公交!G44 -> 102.58 | H52: =G52/#REF!-1 ->  | I52: =[1]公交!I42-[1]公交!I44 -> 102.82 | J52: =I52/#REF!-1 ->  | K52: =[1]公交!K42-[1]公交!K44 -> 102.86 | L52: =K52/#REF!-1 ->  | M52: =[1]公交!M42-[1]公交!M44 -> 103.06 | N52: =M52/#REF!-1 ->  | O52: 614.82 | P52: =O52/SUM(#REF!,#REF!,#REF!,#REF!,#REF!,#REF!)-1 -> 
B53: 城际城乡巡游出租旅客周转量（万人公里） | C53: =[1]出租!C42-[1]出租!C44 -> 1505.33 | D53: =C53/#REF!-1 ->  | E53: =[1]出租!E42-[1]出租!E44 -> 1560.51 | F53: =E53/#REF!-1 ->  | G53: =[1]出租!G42-[1]出租!G44 -> 1249.19 | H53: =G53/#REF!-1 ->  | I53: =[1]出租!I42-[1]出租!I44 -> 1111.64 | J53: =I53/#REF!-1 ->  | K53: =[1]出租!K42-[1]出租!K44 -> 1122.2 | L53: =K53/#REF!-1 ->  | M53: =[1]出租!M42-[1]出租!M44 -> 1138.82 | N53: =M53/#REF!-1 ->  | O53: 7687.69 | P53: =O53/SUM(#REF!,#REF!,#REF!,#REF!,#REF!,#REF!)-1 -> 
B54: 城际城乡网约车旅客周转量(万人公里) | C54: =[1]网约车!C42-[1]网约车!C44 -> 388.04 | D54: =C54/#REF!-1 ->  | E54: =[1]网约车!E42-[1]网约车!E44 -> 393.16 | F54: =E54/#REF!-1 ->  | G54: =[1]网约车!G42-[1]网约车!G44 -> 416.62 | H54: =G54/#REF!-1 ->  | I54: =[1]网约车!I42-[1]网约车!I44 -> 396.96 | J54: =I54/#REF!-1 ->  | K54: =[1]网约车!K42-[1]网约车!K44 -> 417.87 | L54: =K54/#REF!-1 ->  | M54: =[1]网约车!M42-[1]网约车!M44 -> 457.48 | N54: =M54/#REF!-1 ->  | O54: 2470.13 | P54: =O54/SUM(#REF!,#REF!,#REF!,#REF!,#REF!,#REF!)-1 -> 
A55: 黄冈市 | B55: 总旅客周转量（万人公里） | C55: =C56+C57+C58+C59 -> 13827.11 | D55: =C55/#REF!-1 ->  | E55: =E56+E57+E58+E59 -> 15512.03 | F55: =E55/#REF!-1 ->  | G55: =G56+G57+G58+G59 -> 15453.62 | H55: =G55/#REF!-1 ->  | I55: =I56+I57+I58+I59 -> 15694.92 | J55: =I55/#REF!-1 ->  | K55: =K56+K57+K58+K59 -> 16006.25 | L55: =K55/#REF!-1 ->  | M55: =M56+M57+M58+M59 -> 15353.48 | N55: =M55/#REF!-1 ->  | O55: 91847.41 | P55: =O55/SUM(#REF!,#REF!,#REF!,#REF!,#REF!,#REF!)-1 -> 
B56: 公路班线旅客周转量（万人公里） | C56: =[1]班线包车!C39 -> 7888.0719 | D56: =C56/#REF!-1 ->  | E56: =[1]班线包车!E39 -> 9890.8954 | F56: =E56/#REF!-1 ->  | G56: =[1]班线包车!G39 -> 9258.3636 | H56: =G56/#REF!-1 ->  | I56: =[1]班线包车!I39 -> 9236.1468 | J56: =I56/#REF!-1 ->  | K56: =[1]班线包车!K39 -> 9544.8729 | L56: =K56/#REF!-1 ->  | M56: =[1]班线包车!M39 -> 9053.128 | N56: =M56/#REF!-1 ->  | O56: 54871.48 | P56: =O56/SUM(#REF!,#REF!,#REF!,#REF!,#REF!,#REF!)-1 -> 
B57: 城际城乡公交旅客周转量（万人公里） | C57: =[1]公交!C46-[1]公交!C48 -> 5139.01 | D57: =C57/#REF!-1 ->  | E57: =[1]公交!E46-[1]公交!E48 -> 4912.05 | F57: =E57/#REF!-1 ->  | G57: =[1]公交!G46-[1]公交!G48 -> 5501.57 | H57: =G57/#REF!-1 ->  | I57: =[1]公交!I46-[1]公交!I48 -> 5644.45 | J57: =I57/#REF!-1 ->  | K57: =[1]公交!K46-[1]公交!K48 -> 5668.25 | L57: =K57/#REF!-1 ->  | M57: =[1]公交!M46-[1]公交!M48 -> 5491.85 | N57: =M57/#REF!-1 ->  | O57: 32357.18 | P57: =O57/SUM(#REF!,#REF!,#REF!,#REF!,#REF!,#REF!)-1 -> 
B58: 城际城乡巡游出租旅客周转量（万人公里） | C58: =[1]出租!C46-[1]出租!C48 -> 502.62 | D58: =C58/#REF!-1 ->  | E58: =[1]出租!E46-[1]出租!E48 -> 430.92 | F58: =E58/#REF!-1 ->  | G58: =[1]出租!G46-[1]出租!G48 -> 409.59 | H58: =G58/#REF!-1 ->  | I58: =[1]出租!I46-[1]出租!I48 -> 506.65 | J58: =I58/#REF!-1 ->  | K58: =[1]出租!K46-[1]出租!K48 -> 480.17 | L58: =K58/#REF!-1 ->  | M58: =[1]出租!M46-[1]出租!M48 -> 481.46 | N58: =M58/#REF!-1 ->  | O58: 2811.41 | P58: =O58/SUM(#REF!,#REF!,#REF!,#REF!,#REF!,#REF!)-1 -> 
B59: 城际城乡网约车旅客周转量(万人公里) | C59: =[1]网约车!C46-[1]网约车!C48 -> 297.41 | D59: =C59/#REF!-1 ->  | E59: =[1]网约车!E46-[1]网约车!E48 -> 278.17 | F59: =E59/#REF!-1 ->  | G59: =[1]网约车!G46-[1]网约车!G48 -> 284.10 | H59: =G59/#REF!-1 ->  | I59: =[1]网约车!I46-[1]网约车!I48 -> 307.67 | J59: =I59/#REF!-1 ->  | K59: =[1]网约车!K46-[1]网约车!K48 -> 312.95 | L59: =K59/#REF!-1 ->  | M59: =[1]网约车!M46-[1]网约车!M48 -> 327.04 | N59: =M59/#REF!-1 ->  | O59: 1807.34 | P59: =O59/SUM(#REF!,#REF!,#REF!,#REF!,#REF!,#REF!)-1 -> 
A60: 咸宁市 | B60: 总旅客周转量（万人公里） | C60: =C61+C62+C63+C64 -> 9673.86 | D60: =C60/#REF!-1 ->  | E60: =E61+E62+E63+E64 -> 10892.93 | F60: =E60/#REF!-1 ->  | G60: =G61+G62+G63+G64 -> 11678.97 | H60: =G60/#REF!-1 ->  | I60: =I61+I62+I63+I64 -> 12396.98 | J60: =I60/#REF!-1 ->  | K60: =K61+K62+K63+K64 -> 12306.03 | L60: =K60/#REF!-1 ->  | M60: =M61+M62+M63+M64 -> 11177.83 | N60: =M60/#REF!-1 ->  | O60: 68126.60 | P60: =O60/SUM(#REF!,#REF!,#REF!,#REF!,#REF!,#REF!)-1 -> 
B61: 公路班线旅客周转量（万人公里） | C61: =[1]班线包车!C43 -> 4330.6841 | D61: =C61/#REF!-1 ->  | E61: =[1]班线包车!E43 -> 5973.8076 | F61: =E61/#REF!-1 ->  | G61: =[1]班线包车!G43 -> 6126.3787 | H61: =G61/#REF!-1 ->  | I61: =[1]班线包车!I43 -> 6709.8015 | J61: =I61/#REF!-1 ->  | K61: =[1]班线包车!K43 -> 6422.9636 | L61: =K61/#REF!-1 ->  | M61: =[1]班线包车!M43 -> 5719.9664 | N61: =M61/#REF!-1 ->  | O61: 35283.60 | P61: =O61/SUM(#REF!,#REF!,#REF!,#REF!,#REF!,#REF!)-1 -> 
B62: 城际城乡公交旅客周转量（万人公里） | C62: =[1]公交!C50-[1]公交!C52 -> 4344.69 | D62: =C62/#REF!-1 ->  | E62: =[1]公交!E50-[1]公交!E52 -> 4041.1 | F62: =E62/#REF!-1 ->  | G62: =[1]公交!G50-[1]公交!G52 -> 4617.24 | H62: =G62/#REF!-1 ->  | I62: =[1]公交!I50-[1]公交!I52 -> 4796.78 | J62: =I62/#REF!-1 ->  | K62: =[1]公交!K50-[1]公交!K52 -> 4871.22 | L62: =K62/#REF!-1 ->  | M62: =[1]公交!M50-[1]公交!M52 -> 4476.01 | N62: =M62/#REF!-1 ->  | O62: 27147.04 | P62: =O62/SUM(#REF!,#REF!,#REF!,#REF!,#REF!,#REF!)-1 -> 
B63: 城际城乡巡游出租旅客周转量（万人公里） | C63: =[1]出租!C50-[1]出租!C52 -> 566.35 | D63: =C63/#REF!-1 ->  | E63: =[1]出租!E50-[1]出租!E52 -> 554.25 | F63: =E63/#REF!-1 ->  | G63: =[1]出租!G50-[1]出租!G52 -> 558.67 | H63: =G63/#REF!-1 ->  | I63: =[1]出租!I50-[1]出租!I52 -> 550.89 | J63: =I63/#REF!-1 ->  | K63: =[1]出租!K50-[1]出租!K52 -> 591.47 | L63: =K63/#REF!-1 ->  | M63: =[1]出租!M50-[1]出租!M52 -> 553.09 | N63: =M63/#REF!-1 ->  | O63: 3374.72 | P63: =O63/SUM(#REF!,#REF!,#REF!,#REF!,#REF!,#REF!)-1 -> 
B64: 城际城乡网约车旅客周转量(万人公里) | C64: =[1]网约车!C50-[1]网约车!C52 -> 432.14 | D64: =C64/#REF!-1 ->  | E64: =[1]网约车!E50-[1]网约车!E52 -> 323.77 | F64: =E64/#REF!-1 ->  | G64: =[1]网约车!G50-[1]网约车!G52 -> 376.68 | H64: =G64/#REF!-1 ->  | I64: =[1]网约车!I50-[1]网约车!I52 -> 339.51 | J64: =I64/#REF!-1 ->  | K64: =[1]网约车!K50-[1]网约车!K52 -> 420.38 | L64: =K64/#REF!-1 ->  | M64: =[1]网约车!M50-[1]网约车!M52 -> 428.76 | N64: =M64/#REF!-1 ->  | O64: 2321.23 | P64: =O64/SUM(#REF!,#REF!,#REF!,#REF!,#REF!,#REF!)-1 -> 
A65: 随州市 | B65: 总旅客周转量（万人公里） | C65: =C66+C67+C68+C69 -> 7095.88 | D65: =C65/#REF!-1 ->  | E65: =E66+E67+E68+E69 -> 7434.49 | F65: =E65/#REF!-1 ->  | G65: =G66+G67+G68+G69 -> 7420.40 | H65: =G65/#REF!-1 ->  | I65: =I66+I67+I68+I69 -> 7649.02 | J65: =I65/#REF!-1 ->  | K65: =K66+K67+K68+K69 -> 7656.46 | L65: =K65/#REF!-1 ->  | M65: =M66+M67+M68+M69 -> 7394.33 | N65: =M65/#REF!-1 ->  | O65: 44650.56 | P65: =O65/SUM(#REF!,#REF!,#REF!,#REF!,#REF!,#REF!)-1 -> 
B66: 公路班线旅客周转量（万人公里） | C66: =[1]班线包车!C45 -> 6018.7633 | D66: =C66/#REF!-1 ->  | E66: =[1]班线包车!E45 -> 6370.467 | F66: =E66/#REF!-1 ->  | G66: =[1]班线包车!G45 -> 6382.2507 | H66: =G66/#REF!-1 ->  | I66: =[1]班线包车!I45 -> 6638.9771 | J66: =I66/#REF!-1 ->  | K66: =[1]班线包车!K45 -> 6644.3877 | L66: =K66/#REF!-1 ->  | M66: =[1]班线包车!M45 -> 6426.1171 | N66: =M66/#REF!-1 ->  | O66: 38480.96 | P66: =O66/SUM(#REF!,#REF!,#REF!,#REF!,#REF!,#REF!)-1 -> 
B67: 城际城乡公交旅客周转量（万人公里） | C67: =[1]公交!C54-[1]公交!C56 -> 613.91 | D67: =C67/#REF!-1 ->  | E67: =[1]公交!E54-[1]公交!E56 -> 578.52 | F67: =E67/#REF!-1 ->  | G67: =[1]公交!G54-[1]公交!G56 -> 573.87 | H67: =G67/#REF!-1 ->  | I67: =[1]公交!I54-[1]公交!I56 -> 549.26 | J67: =I67/#REF!-1 ->  | K67: =[1]公交!K54-[1]公交!K56 -> 552.73 | L67: =K67/#REF!-1 ->  | M67: =[1]公交!M54-[1]公交!M56 -> 508.73 | N67: =M67/#REF!-1 ->  | O67: 3377.02 | P67: =O67/SUM(#REF!,#REF!,#REF!,#REF!,#REF!,#REF!)-1 -> 
B68: 城际城乡巡游出租旅客周转量（万人公里） | C68: =[1]出租!C54-[1]出租!C56 -> 256.23 | D68: =C68/#REF!-1 ->  | E68: =[1]出租!E54-[1]出租!E56 -> 282.11 | F68: =E68/#REF!-1 ->  | G68: =[1]出租!G54-[1]出租!G56 -> 274.28 | H68: =G68/#REF!-1 ->  | I68: =[1]出租!I54-[1]出租!I56 -> 281.87 | J68: =I68/#REF!-1 ->  | K68: =[1]出租!K54-[1]出租!K56 -> 284.25 | L68: =K68/#REF!-1 ->  | M68: =[1]出租!M54-[1]出租!M56 -> 282.01 | N68: =M68/#REF!-1 ->  | O68: 1660.75 | P68: =O68/SUM(#REF!,#REF!,#REF!,#REF!,#REF!,#REF!)-1 -> 
B69: 城际城乡网约车旅客周转量(万人公里) | C69: =[1]网约车!C54-[1]网约车!C56 -> 206.97 | D69: =C69/#REF!-1 ->  | E69: =[1]网约车!E54-[1]网约车!E56 -> 203.39 | F69: =E69/#REF!-1 ->  | G69: =[1]网约车!G54-[1]网约车!G56 -> 189.99 | H69: =G69/#REF!-1 ->  | I69: =[1]网约车!I54-[1]网约车!I56 -> 178.91 | J69: =I69/#REF!-1 ->  | K69: =[1]网约车!K54-[1]网约车!K56 -> 175.09 | L69: =K69/#REF!-1 ->  | M69: =[1]网约车!M54-[1]网约车!M56 -> 177.47 | N69: =M69/#REF!-1 ->  | O69: =E69+C69+G69+I69+K69+M69 -> 1131.83 | P69: =O69/SUM(#REF!,#REF!,#REF!,#REF!,#REF!,#REF!)-1 -> 
A70: 恩施州 | B70: 总旅客周转量（万人公里） | C70: =C71+C72+C73+C74 -> 14292.86 | D70: =C70/#REF!-1 ->  | E70: =E71+E72+E73+E74 -> 16352.39 | F70: =E70/#REF!-1 ->  | G70: =G71+G72+G73+G74 -> 17256.90 | H70: =G70/#REF!-1 ->  | I70: =I71+I72+I73+I74 -> 18292.65 | J70: =I70/#REF!-1 ->  | K70: =K71+K72+K73+K74 -> 17553.25 | L70: =K70/#REF!-1 ->  | M70: =M71+M72+M73+M74 -> 15799.10 | N70: =M70/#REF!-1 ->  | O70: 99547.16 | P70: =O70/SUM(#REF!,#REF!,#REF!,#REF!,#REF!,#REF!)-1 -> 
B71: 公路班线旅客周转量（万人公里） | C71: =[1]班线包车!C49 -> 10684.8007 | D71: =C71/#REF!-1 ->  | E71: =[1]班线包车!E49 -> 13255.0026 | F71: =E71/#REF!-1 ->  | G71: =[1]班线包车!G49 -> 13786.1171 | H71: =G71/#REF!-1 ->  | I71: =[1]班线包车!I49 -> 14831.9663 | J71: =I71/#REF!-1 ->  | K71: =[1]班线包车!K49 -> 13914.4557 | L71: =K71/#REF!-1 ->  | M71: =[1]班线包车!M49 -> 12216.1679 | N71: =M71/#REF!-1 ->  | O71: 78688.51 | P71: =O71/SUM(#REF!,#REF!,#REF!,#REF!,#REF!,#REF!)-1 -> 
B72: 城际城乡公交旅客周转量（万人公里） | C72: =[1]公交!C58-[1]公交!C60 -> 1613.52 | D72: =C72/#REF!-1 ->  | E72: =[1]公交!E58-[1]公交!E60 -> 1188.04 | F72: =E72/#REF!-1 ->  | G72: =[1]公交!G58-[1]公交!G60 -> 1545.24 | H72: =G72/#REF!-1 ->  | I72: =[1]公交!I58-[1]公交!I60 -> 1550.19 | J72: =I72/#REF!-1 ->  | K72: =[1]公交!K58-[1]公交!K60 -> 1626.06 | L72: =K72/#REF!-1 ->  | M72: =[1]公交!M58-[1]公交!M60 -> 1556.31 | N72: =M72/#REF!-1 ->  | O72: 9079.36 | P72: =O72/SUM(#REF!,#REF!,#REF!,#REF!,#REF!,#REF!)-1 -> 
B73: 城际城乡巡游出租旅客周转量（万人公里） | C73: =[1]出租!C58-[1]出租!C60 -> 1335.24 | D73: =C73/#REF!-1 ->  | E73: =[1]出租!E58-[1]出租!E60 -> 1399.46 | F73: =E73/#REF!-1 ->  | G73: =[1]出租!G58-[1]出租!G60 -> 1219.59 | H73: =G73/#REF!-1 ->  | I73: =[1]出租!I58-[1]出租!I60 -> 1184.76 | J73: =I73/#REF!-1 ->  | K73: =[1]出租!K58-[1]出租!K60 -> 1208.02 | L73: =K73/#REF!-1 ->  | M73: =[1]出租!M58-[1]出租!M60 -> 1194.75 | N73: =M73/#REF!-1 ->  | O73: 7541.82 | P73: =O73/SUM(#REF!,#REF!,#REF!,#REF!,#REF!,#REF!)-1 -> 
B74: 城际城乡网约车旅客周转量(万人公里) | C74: =[1]网约车!C58-[1]网约车!C60 -> 659.30 | D74: =C74/#REF!-1 ->  | E74: =[1]网约车!E58-[1]网约车!E60 -> 509.89 | F74: =E74/#REF!-1 ->  | G74: =[1]网约车!G58-[1]网约车!G60 -> 705.96 | H74: =G74/#REF!-1 ->  | I74: =[1]网约车!I58-[1]网约车!I60 -> 725.74 | J74: =I74/#REF!-1 ->  | K74: =[1]网约车!K58-[1]网约车!K60 -> 804.72 | L74: =K74/#REF!-1 ->  | M74: =[1]网约车!M58-[1]网约车!M60 -> 831.87 | N74: =M74/#REF!-1 ->  | O74: 4237.47 | P74: =O74/SUM(#REF!,#REF!,#REF!,#REF!,#REF!,#REF!)-1 -> 
A75: 仙桃市 | B75: 总旅客周转量（万人公里） | C75: =C76+C77+C78+C79 -> 958.71 | D75: =C75/#REF!-1 ->  | E75: =E76+E77+E78+E79 -> 983.67 | F75: =E75/#REF!-1 ->  | G75: =G76+G77+G78+G79 -> 972.67 | H75: =G75/#REF!-1 ->  | I75: =I76+I77+I78+I79 -> 945.91 | J75: =I75/#REF!-1 ->  | K75: =K76+K77+K78+K79 -> 973.35 | L75: =K75/#REF!-1 ->  | M75: =M76+M77+M78+M79 -> 1007.12 | N75: =M75/#REF!-1 ->  | O75: 5841.44 | P75: =O75/SUM(#REF!,#REF!,#REF!,#REF!,#REF!,#REF!)-1 -> 
B76: 公路班线旅客周转量（万人公里） | C76: =[1]班线包车!C51 -> 447.8643 | D76: =C76/#REF!-1 ->  | E76: =[1]班线包车!E51 -> 448.4483 | F76: =E76/#REF!-1 ->  | G76: =[1]班线包车!G51 -> 460.931 | H76: =G76/#REF!-1 ->  | I76: =[1]班线包车!I51 -> 465.732 | J76: =I76/#REF!-1 ->  | K76: =[1]班线包车!K51 -> 484.5462 | L76: =K76/#REF!-1 ->  | M76: =[1]班线包车!M51 -> 516.0528 | N76: =M76/#REF!-1 ->  | O76: 2823.57 | P76: =O76/SUM(#REF!,#REF!,#REF!,#REF!,#REF!,#REF!)-1 -> 
B77: 城际城乡公交旅客周转量（万人公里） | C77: =[1]公交!C62-[1]公交!C64 -> 268 | D77: =C77/#REF!-1 ->  | E77: =[1]公交!E62-[1]公交!E64 -> 275.12 | F77: =E77/#REF!-1 ->  | G77: =[1]公交!G62-[1]公交!G64 -> 266.86 | H77: =G77/#REF!-1 ->  | I77: =[1]公交!I62-[1]公交!I64 -> 268.26 | J77: =I77/#REF!-1 ->  | K77: =[1]公交!K62-[1]公交!K64 -> 266.7 | L77: =K77/#REF!-1 ->  | M77: =[1]公交!M62-[1]公交!M64 -> 262.72 | N77: =M77/#REF!-1 ->  | O77: 1607.66 | P77: =O77/SUM(#REF!,#REF!,#REF!,#REF!,#REF!,#REF!)-1 -> 
B78: 城际城乡巡游出租旅客周转量（万人公里） | C78: =[1]出租!C62-[1]出租!C64 -> 89.77 | D78: =C78/#REF!-1 ->  | E78: =[1]出租!E62-[1]出租!E64 -> 98.6 | F78: =E78/#REF!-1 ->  | G78: =[1]出租!G62-[1]出租!G64 -> 94.34 | H78: =G78/#REF!-1 ->  | I78: =[1]出租!I62-[1]出租!I64 -> 78.65 | J78: =I78/#REF!-1 ->  | K78: =[1]出租!K62-[1]出租!K64 -> 76.01 | L78: =K78/#REF!-1 ->  | M78: =[1]出租!M62-[1]出租!M64 -> 77.96 | N78: =M78/#REF!-1 ->  | O78: 515.33 | P78: =O78/SUM(#REF!,#REF!,#REF!,#REF!,#REF!,#REF!)-1 -> 
B79: 城际城乡网约车旅客周转量(万人公里) | C79: =[1]网约车!C62-[1]网约车!C64 -> 153.08 | D79: =C79/#REF!-1 ->  | E79: =[1]网约车!E62-[1]网约车!E64 -> 161.50 | F79: =E79/#REF!-1 ->  | G79: =[1]网约车!G62-[1]网约车!G64 -> 150.54 | H79: =G79/#REF!-1 ->  | I79: =[1]网约车!I62-[1]网约车!I64 -> 133.27 | J79: =I79/#REF!-1 ->  | K79: =[1]网约车!K62-[1]网约车!K64 -> 146.10 | L79: =K79/#REF!-1 ->  | M79: =[1]网约车!M62-[1]网约车!M64 -> 150.38 | N79: =M79/#REF!-1 ->  | O79: 894.88 | P79: =O79/SUM(#REF!,#REF!,#REF!,#REF!,#REF!,#REF!)-1 -> 
A80: 潜江市 | B80: 总旅客周转量（万人公里） | C80: =C81+C82+C83+C84 -> 2392.03 | D80: =C80/#REF!-1 ->  | E80: =E81+E82+E83+E84 -> 2347.01 | F80: =E80/#REF!-1 ->  | G80: =G81+G82+G83+G84 -> 2163.53 | H80: =G80/#REF!-1 ->  | I80: =I81+I82+I83+I84 -> 2165.27 | J80: =I80/#REF!-1 ->  | K80: =K81+K82+K83+K84 -> 2323.91 | L80: =K80/#REF!-1 ->  | M80: =M81+M82+M83+M84 -> 2380.39 | N80: =M80/#REF!-1 ->  | O80: 13772.14 | P80: =O80/SUM(#REF!,#REF!,#REF!,#REF!,#REF!,#REF!)-1 -> 
B81: 公路班线旅客周转量（万人公里） | C81: =[1]班线包车!C53 -> 237.4332 | D81: =C81/#REF!-1 ->  | E81: =[1]班线包车!E53 -> 176.7706 | F81: =E81/#REF!-1 ->  | G81: =[1]班线包车!G53 -> 172.2912 | H81: =G81/#REF!-1 ->  | I81: =[1]班线包车!I53 -> 179.4491 | J81: =I81/#REF!-1 ->  | K81: =[1]班线包车!K53 -> 154.2538 | L81: =K81/#REF!-1 ->  | M81: =[1]班线包车!M53 -> 175.321 | N81: =M81/#REF!-1 ->  | O81: 1095.52 | P81: =O81/SUM(#REF!,#REF!,#REF!,#REF!,#REF!,#REF!)-1 -> 
B82: 城际城乡公交旅客周转量（万人公里） | C82: =[1]公交!C66-[1]公交!C68 -> 1764.63 | D82: =C82/#REF!-1 ->  | E82: =[1]公交!E66-[1]公交!E68 -> 1782.03 | F82: =E82/#REF!-1 ->  | G82: =[1]公交!G66-[1]公交!G68 -> 1628.76 | H82: =G82/#REF!-1 ->  | I82: =[1]公交!I66-[1]公交!I68 -> 1622.53 | J82: =I82/#REF!-1 ->  | K82: =[1]公交!K66-[1]公交!K68 -> 1748.21 | L82: =K82/#REF!-1 ->  | M82: =[1]公交!M66-[1]公交!M68 -> 1838.57 | N82: =M82/#REF!-1 ->  | O82: 10384.73 | P82: =O82/SUM(#REF!,#REF!,#REF!,#REF!,#REF!,#REF!)-1 -> 
B83: 城际城乡巡游出租旅客周转量（万人公里） | C83: =[1]出租!C66-[1]出租!C68 -> 269.63 | D83: =C83/#REF!-1 ->  | E83: =[1]出租!E66-[1]出租!E68 -> 265.17 | F83: =E83/#REF!-1 ->  | G83: =[1]出租!G66-[1]出租!G68 -> 248.93 | H83: =G83/#REF!-1 ->  | I83: =[1]出租!I66-[1]出租!I68 -> 248.16 | J83: =I83/#REF!-1 ->  | K83: =[1]出租!K66-[1]出租!K68 -> 295.67 | L83: =K83/#REF!-1 ->  | M83: =[1]出租!M66-[1]出租!M68 -> 247.99 | N83: =M83/#REF!-1 ->  | O83: 1575.55 | P83: =O83/SUM(#REF!,#REF!,#REF!,#REF!,#REF!,#REF!)-1 -> 
B84: 城际城乡网约车旅客周转量(万人公里) | C84: =[1]网约车!C66-[1]网约车!C68 -> 120.34 | D84: =C84/#REF!-1 ->  | E84: =[1]网约车!E66-[1]网约车!E68 -> 123.04 | F84: =E84/#REF!-1 ->  | G84: =[1]网约车!G66-[1]网约车!G68 -> 113.55 | H84: =G84/#REF!-1 ->  | I84: =[1]网约车!I66-[1]网约车!I68 -> 115.13 | J84: =I84/#REF!-1 ->  | K84: =[1]网约车!K66-[1]网约车!K68 -> 125.78 | L84: =K84/#REF!-1 ->  | M84: =[1]网约车!M66-[1]网约车!M68 -> 118.50 | N84: =M84/#REF!-1 ->  | O84: 716.34 | P84: =O84/SUM(#REF!,#REF!,#REF!,#REF!,#REF!,#REF!)-1 -> 
A85: 天门市 | B85: 总旅客周转量（万人公里） | C85: =C86+C87+C88+C89 -> 2087.42 | D85: =C85/#REF!-1 ->  | E85: =E86+E87+E88+E89 -> 3033.26 | F85: =E85/#REF!-1 ->  | G85: =G86+G87+G88+G89 -> 2800.39 | H85: =G85/#REF!-1 ->  | I85: =I86+I87+I88+I89 -> 3622.56 | J85: =I85/#REF!-1 ->  | K85: =K86+K87+K88+K89 -> 3336.86 | L85: =K85/#REF!-1 ->  | M85: =M86+M87+M88+M89 -> 3755.99 | N85: =M85/#REF!-1 ->  | O85: 18636.48 | P85: =O85/SUM(#REF!,#REF!,#REF!,#REF!,#REF!,#REF!)-1 -> 
B86: 公路班线旅客周转量（万人公里） | C86: =[1]班线包车!C55 -> 524.6797 | D86: =C86/#REF!-1 ->  | E86: =[1]班线包车!E55 -> 1354.6626 | F86: =E86/#REF!-1 ->  | G86: =[1]班线包车!G55 -> 1233.6733 | H86: =G86/#REF!-1 ->  | I86: =[1]班线包车!I55 -> 2058.7247 | J86: =I86/#REF!-1 ->  | K86: =[1]班线包车!K55 -> 1725.1329 | L86: =K86/#REF!-1 ->  | M86: =[1]班线包车!M55 -> 2213.7637 | N86: =M86/#REF!-1 ->  | O86: 9110.64 | P86: =O86/SUM(#REF!,#REF!,#REF!,#REF!,#REF!,#REF!)-1 -> 
B87: 城际城乡公交旅客周转量（万人公里） | C87: =[1]公交!C70-[1]公交!C72 -> 1204.45 | D87: =C87/#REF!-1 ->  | E87: =[1]公交!E70-[1]公交!E72 -> 1327.61 | F87: =E87/#REF!-1 ->  | G87: =[1]公交!G70-[1]公交!G72 -> 1232.6 | H87: =G87/#REF!-1 ->  | I87: =[1]公交!I70-[1]公交!I72 -> 1234.04 | J87: =I87/#REF!-1 ->  | K87: =[1]公交!K70-[1]公交!K72 -> 1265.04 | L87: =K87/#REF!-1 ->  | M87: =[1]公交!M70-[1]公交!M72 -> 1226.04 | N87: =M87/#REF!-1 ->  | O87: 7489.78 | P87: =O87/SUM(#REF!,#REF!,#REF!,#REF!,#REF!,#REF!)-1 -> 
B88: 城际城乡巡游出租旅客周转量（万人公里） | C88: =[1]出租!C70-[1]出租!C72 -> 197.34 | D88: =C88/#REF!-1 ->  | E88: =[1]出租!E70-[1]出租!E72 -> 203.92 | F88: =E88/#REF!-1 ->  | G88: =[1]出租!G70-[1]出租!G72 -> 192.94 | H88: =G88/#REF!-1 ->  | I88: =[1]出租!I70-[1]出租!I72 -> 190.66 | J88: =I88/#REF!-1 ->  | K88: =[1]出租!K70-[1]出租!K72 -> 196.6 | L88: =K88/#REF!-1 ->  | M88: =[1]出租!M70-[1]出租!M72 -> 164.88 | N88: =M88/#REF!-1 ->  | O88: 1146.34 | P88: =O88/SUM(#REF!,#REF!,#REF!,#REF!,#REF!,#REF!)-1 -> 
B89: 城际城乡网约车旅客周转量(万人公里) | C89: =[1]网约车!C70-[1]网约车!C72 -> 160.95 | D89: =C89/#REF!-1 ->  | E89: =[1]网约车!E70-[1]网约车!E72 -> 147.07 | F89: =E89/#REF!-1 ->  | G89: =[1]网约车!G70-[1]网约车!G72 -> 141.17 | H89: =G89/#REF!-1 ->  | I89: =[1]网约车!I70-[1]网约车!I72 -> 139.13 | J89: =I89/#REF!-1 ->  | K89: =[1]网约车!K70-[1]网约车!K72 -> 150.09 | L89: =K89/#REF!-1 ->  | M89: =[1]网约车!M70-[1]网约车!M72 -> 151.31 | N89: =M89/#REF!-1 ->  | O89: 889.72 | P89: =O89/SUM(#REF!,#REF!,#REF!,#REF!,#REF!,#REF!)-1 -> 
A90: 林区 | B90: 总旅客周转量（万人公里） | C90: =C91+C92+C93+C94 -> 320.03 | D90: =C90/#REF!-1 ->  | E90: =E91+E92+E93+E94 -> 670.26 | F90: =E90/#REF!-1 ->  | G90: =G91+G92+G93+G94 -> 189.37 | H90: =G90/#REF!-1 ->  | I90: =I91+I92+I93+I94 -> 288.83 | J90: =I90/#REF!-1 ->  | K90: =K91+K92+K93+K94 -> 345.54 | L90: =K90/#REF!-1 ->  | M90: =M91+M92+M93+M94 -> 252.37 | N90: =M90/#REF!-1 ->  | O90: 2066.40 | P90: =O90/SUM(#REF!,#REF!,#REF!,#REF!,#REF!,#REF!)-1 -> 
B91: 公路班线旅客周转量（万人公里） | C91: =[1]班线包车!C57 -> 265.8931 | D91: =C91/#REF!-1 ->  | E91: =[1]班线包车!E57 -> 624.3892 | F91: =E91/#REF!-1 ->  | G91: =[1]班线包车!G57 -> 137.2869 | H91: =G91/#REF!-1 ->  | I91: =[1]班线包车!I57 -> 237.1374 | J91: =I91/#REF!-1 ->  | K91: =[1]班线包车!K57 -> 292.4533 | L91: =K91/#REF!-1 ->  | M91: =[1]班线包车!M57 -> 196.8723 | N91: =M91/#REF!-1 ->  | O91: 1754.03 | P91: =O91/SUM(#REF!,#REF!,#REF!,#REF!,#REF!,#REF!)-1 -> 
B92: 城际城乡公交旅客周转量（万人公里） | C92: =[1]公交!C74-[1]公交!C76 -> 28.07 | D92: =C92/#REF!-1 ->  | E92: =[1]公交!E74-[1]公交!E76 -> 20 | F92: =E92/#REF!-1 ->  | G92: =[1]公交!G74-[1]公交!G76 -> 26 | H92: =G92/#REF!-1 ->  | I92: =[1]公交!I74-[1]公交!I76 -> 25.6 | J92: =I92/#REF!-1 ->  | K92: =[1]公交!K74-[1]公交!K76 -> 26.75 | L92: =K92/#REF!-1 ->  | M92: =[1]公交!M74-[1]公交!M76 -> 28.93 | N92: =M92/#REF!-1 ->  | O92: 155.35 | P92: =O92/SUM(#REF!,#REF!,#REF!,#REF!,#REF!,#REF!)-1 -> 
B93: 城际城乡巡游出租旅客周转量（万人公里） | C93: =[1]出租!C74-[1]出租!C76 -> 25.4 | D93: =C93/#REF!-1 ->  | E93: =[1]出租!E74-[1]出租!E76 -> 25.38 | F93: =E93/#REF!-1 ->  | G93: =[1]出租!G74-[1]出租!G76 -> 25.39 | H93: =G93/#REF!-1 ->  | I93: =[1]出租!I74-[1]出租!I76 -> 25.4 | J93: =I93/#REF!-1 ->  | K93: =[1]出租!K74-[1]出租!K76 -> 25.5 | L93: =K93/#REF!-1 ->  | M93: =[1]出租!M74-[1]出租!M76 -> 25.57 | N93: =M93/#REF!-1 ->  | O93: 152.64 | P93: =O93/SUM(#REF!,#REF!,#REF!,#REF!,#REF!,#REF!)-1 -> 
B94: 城际城乡网约车旅客周转量(万人公里) | C94: =[1]网约车!C74-[1]网约车!C76 -> 0.67 | D94: =C94/#REF!-1 ->  | E94: =[1]网约车!E74-[1]网约车!E76 -> 0.49 | F94: =E94/#REF!-1 ->  | G94: =[1]网约车!G74-[1]网约车!G76 -> 0.69 | H94: =G94/#REF!-1 ->  | I94: =[1]网约车!I74-[1]网约车!I76 -> 0.69 | J94: =I94/#REF!-1 ->  | K94: =[1]网约车!K74-[1]网约车!K76 -> 0.83 | L94: =K94/#REF!-1 ->  | M94: =[1]网约车!M74-[1]网约车!M76 -> 1.00 | N94: =M94/#REF!-1 ->  | O94: 4.38 | P94: =O94/SUM(#REF!,#REF!,#REF!,#REF!,#REF!,#REF!)-1 -> 
